Workbook

Sheet TR125
A1: Indication of FFR results for Tender Round 125, accepted tenders will be officially notified via an issued acceptance letter.
A2: Tender Ref | B2: Status | C2: Rejection code | D2: Company Name | E2: Tendered Unit (BMU/Unit ID) | F2: TO connection / DNO connection | G2: Generation Type | H2: Start Date | I2: End Date | J2: Tendered Period (dd.mm.yy - dd.mm.yy) | K2: Applicable FFR Capability Data Table | L2: Tendered Frames per Service Day | U2: Tendered Prices*** | X2: BMUs Only - Applicable Balancing Service (i.e. ABSVD Imbalance) YES/NO | Y2: Dynamic Providers Only | AC2: Dynamic Providers only | AJ2: Please indicate as per detail change provision if you are adding volume | AK2: Please state the accepted tender that you are stacking onto | AL2: Please state if this is an all or nothing bid. Clearly reference what lines are included in each all or nothing bid | AM2: Please indicate if this is a mutually exclusive tender | AN2: Non-Dynamic Providers | AP2: Comments
L3: Working Days (Mon-Fri) | O3: Saturdays | R3: Sundays/Bank Holidays | U3: Availability Fee (£/h) | V3: Nomination Fee (£/h) | W3: Window Initiation Fee (£/window) | Y3: Maximum Part Load Point (MW) | Z3: Minimum Part Load Point (MW) | AA3: Minimum MEL (MW) | AB3: Maximum SEL (MW) | AN3: Volume of Response Tendered
L4: From | M4: To | N4: Duration (h) | O4: From | P4: To | Q4: Duration (h) | R4: From | S4: To | T4: Duration (h) | AC4: Primary Response (max.) @ 0.2Hz (MW) | AD4: Primary Response (max.) @ 0.5Hz (MW) | AE4: Primary Response (max.) @ 0.8Hz (MW) | AF4: Secondary Response (max.) @ 0.2/0.2Hz (MW) | AG4: Secondary Response (max.) @ 0.5/0.5Hz (MW) | AH4: High Frequency Response (max.) @ 0.2Hz (MW) | AI4: High Frequency Response (max.) @ 0.5Hz (MW) | AN4: Automatic Response Energy Deliverable by 10s (MW) | AO4: Automatic Response Energy Deliverable by 30s (MW)
A5: 125 | D5: Example Company | E5: Ex-FFR-1 | F5: TO connection | G5: Wind | H5: 2020-06-01 | I5: 2020-06-30 | J5: =IFERROR(TEXT(H5,"DD.MM.YY")&" - "&TEXT(I5,"DD.MM.YY")&" ("&DATEDIF(H5,I5+1,"m")&" months)","Tender End Date is Before Start Date") -> 01.06.20 - 30.06.20 (1 months) | K5: As per FFR framework agreement | L5: 2300 | M5: 700 | N5: =IF(L5>M5, (2400-L5+M5)/100, IF(AND(L5="",M5="",L5=M5), "", IF(L5=M5,24,(M5-L5)/100))) -> 8 | O5: 2300 | P5: 700 | Q5: =IF(O5>P5, (2400-O5+P5)/100, IF(AND(O5="",P5="",O5=P5), "", IF(O5=P5,24,(P5-O5)/100))) -> 8 | R5: 2300 | S5: 700 | T5: =IF(R5>S5, (2400-R5+S5)/100, IF(AND(R5="",S5="",R5=S5), "", IF(R5=S5,24,(S5-R5)/100))) -> 8 | U5: 100 | V5: 600 | W5: - | X5: - | Y5: - | Z5: - | AA5: - | AB5: - | AC5: - | AD5: - | AE5: - | AF5: - | AG5: - | AH5: - | AI5: - | AJ5: - | AK5: - | AN5: - | AO5: - | AP5: -
A6: 125 | D6: Example Company | E6: =E5 -> Ex-FFR-1 | F6: DNO connection | G6: Gas | H6: =H5 -> 2020-06-01 | I6: =I5 -> 2020-06-30 | J6: =IFERROR(TEXT(H6,"DD.MM.YY")&" - "&TEXT(I6,"DD.MM.YY")&" ("&DATEDIF(H6,I6+1,"m")&" months)","Tender End Date is Before Start Date") -> 01.06.20 - 30.06.20 (1 months) | K6: As per FFR framework agreement | L6: 700 | M6: 2300 | N6: 16 | O6: 700 | P6: 2300 | Q6: 16 | R6: 700 | S6: 2300 | T6: 16 | U6: 600 | V6: 100 | W6: - | X6: - | Y6: - | Z6: - | AA6: - | AB6: - | AC6: - | AD6: - | AE6: - | AF6: - | AG6: - | AH6: - | AI6: - | AJ6: - | AK6: - | AN6: - | AO6: - | AP6: -
A7: =A5+0.001 -> 125.001 | B7: Accepted | C7: NA | D7: ATTUNE ENERGY | E7: ERNES-1 | F7: DNO connection | G7: Bio Fuel | H7: 2020-06-01 | I7: 2020-06-30 | J7: 01.06.20 - 30.06.20 (1 months) | K7: As per FFR framework agreement | L7: 700 | M7: 1500 | N7: 8 | O7: 700 | P7: 1500 | Q7: 8 | R7: 700 | S7: 1500 | T7: 8 | U7: 50 | AO7: 20
A8: =A7+0.001 -> 125.002 | B8: Accepted | C8: NA | D8: FLEXIBLE GENERATION | E8: CRMU-1 | F8: DNO connection | G8: Bio Fuel | H8: 2020-06-01 | I8: 2020-06-30 | J8: 01.06.20 - 30.06.20 (1 months) | K8: As per FFR framework agreement | L8: 700 | M8: 1500 | N8: 8 | O8: 700 | P8: 1500 | Q8: 8 | R8: 700 | S8: 1500 | T8: 8 | U8: 53 | AO8: 20
A9: 125.003 | B9: Accepted | C9: NA | D9: PRECISE ENERGY | E9: STOWA-1 | F9: DNO connection | G9: Bio Fuel | H9: 2020-06-01 | I9: 2020-06-30 | J9: 01.06.20 - 30.06.20 (1 months) | K9: As per FFR framework agreement | L9: 700 | M9: 1500 | N9: 8 | O9: 700 | P9: 1500 | Q9: 8 | R9: 700 | S9: 1500 | T9: 8 | U9: 55 | AO9: 20
A10: 125.004 | B10: Accepted | C10: NA | D10: VALENCE POWER | E10: STOWB-1 | F10: DNO connection | G10: Bio Fuel | H10: 2020-06-01 | I10: 2020-06-30 | J10: 01.06.20 - 30.06.20 (1 months) | K10: As per FFR framework agreement | L10: 700 | M10: 1500 | N10: 8 | O10: 700 | P10: 1500 | Q10: 8 | R10: 700 | S10: 1500 | T10: 8 | U10: 54 | AO10: 20
A11: 125.005 | B11: Accepted | C11: NA | D11: BALANCE POWER | E11: IPSWA-1 | F11: DNO connection | G11: Bio Fuel | H11: 2020-06-01 | I11: 2020-06-30 | J11: 01.06.20 - 30.06.20 (1 months) | K11: As per FFR framework agreement | L11: 700 | M11: 1500 | N11: 8 | O11: 700 | P11: 1500 | Q11: 8 | R11: 700 | S11: 1500 | T11: 8 | U11: 52 | AO11: 20
A12: 125.006 | B12: Accepted | C12: NA | D12: EQUIVALENCE ENERGY | E12: IPSWB-1 | F12: DNO connection | G12: Bio Fuel | H12: 2020-06-01 | I12: 2020-06-30 | J12: 01.06.20 - 30.06.20 (1 months) | K12: As per FFR framework agreement | L12: 1500 | M12: 2300 | N12: 8 | O12: 1500 | P12: 2300 | Q12: 8 | R12: 1500 | S12: 2300 | T12: 8 | U12: 51 | AO12: 20
A13: 125.007 | B13: Accepted | C13: NA | D13: ATTUNE ENERGY | E13: ERNES-1 | F13: DNO connection | G13: Bio Fuel | H13: 2020-06-01 | I13: 2020-06-30 | J13: 01.06.20 - 30.06.20 (1 months) | K13: As per FFR framework agreement | L13: 1500 | M13: 2300 | N13: 8 | O13: 1500 | P13: 2300 | Q13: 8 | R13: 1500 | S13: 2300 | T13: 8 | U13: 50 | AO13: 20
A14: 125.008 | B14: Accepted | C14: NA | D14: FLEXIBLE GENERATION | E14: CRMU-1 | F14: DNO connection | G14: Bio Fuel | H14: 2020-06-01 | I14: 2020-06-30 | J14: 01.06.20 - 30.06.20 (1 months) | K14: As per FFR framework agreement | L14: 1500 | M14: 2300 | N14: 8 | O14: 1500 | P14: 2300 | Q14: 8 | R14: 1500 | S14: 2300 | T14: 8 | U14: 52 | AO14: 20
A15: 125.009 | B15: Rejected | C15: 1.2 | D15: PRECISE ENERGY | E15: STOWA-1 | F15: DNO connection | G15: Bio Fuel | H15: 2020-06-01 | I15: 2020-06-30 | J15: 01.06.20 - 30.06.20 (1 months) | K15: As per FFR framework agreement | L15: 1500 | M15: 2300 | N15: 8 | O15: 1500 | P15: 2300 | Q15: 8 | R15: 1500 | S15: 2300 | T15: 8 | U15: 53 | AO15: 20
A16: 125.01 | B16: Accepted | C16: NA | D16: VALENCE POWER | E16: STOWB-1 | F16: DNO connection | G16: Bio Fuel | H16: 2020-06-01 | I16: 2020-06-30 | J16: 01.06.20 - 30.06.20 (1 months) | K16: As per FFR framework agreement | L16: 1500 | M16: 2300 | N16: 8 | O16: 1500 | P16: 2300 | Q16: 8 | R16: 1500 | S16: 2300 | T16: 8 | U16: 51 | AO16: 20
A17: 125.011 | B17: Accepted | C17: NA | D17: PRECISE ENERGY | E17: STOWA-1 | F17: DNO connection | G17: Bio Fuel | H17: 2020-05-31 | I17: 2020-06-30 | J17: 31.05.20 - 30.06.20 (1 months) | K17: As per FFR framework agreement | L17: 2300 | M17: 300 | N17: 4 | O17: 2300 | P17: 300 | Q17: 4 | R17: 2300 | S17: 300 | T17: 4 | U17: 12 | AO17: 16
A18: 125.012 | B18: Rejected | C18: 1.2 | D18: VALENCE POWER | E18: STOWB-1 | F18: DNO connection | G18: Bio Fuel | H18: 2020-06-01 | I18: 2020-06-30 | J18: 01.06.20 - 30.06.20 (1 months) | K18: As per FFR framework agreement | L18: 300 | M18: 700 | N18: 4 | O18: 300 | P18: 700 | Q18: 4 | R18: 300 | S18: 700 | T18: 4 | U18: 20 | AO18: 20
A19: 125.013 | B19: Accepted | C19: NA | D19: FLEXIBLE GENERATION | E19: CRMU-1 | F19: DNO connection | G19: Bio Fuel | H19: 2020-06-01 | I19: 2020-06-30 | J19: 01.06.20 - 30.06.20 (1 months) | K19: As per FFR framework agreement | L19: 300 | M19: 700 | N19: 4 | O19: 300 | P19: 700 | Q19: 4 | R19: 300 | S19: 700 | T19: 4 | U19: 9 | AO19: 9
A20: 125.014 | B20: Accepted | C20: NA | D20: BESS HoldCo 2 Ltd | E20: DBESS-22 | F20: DNO connection | G20: Battery | H20: 2020-05-31 | I20: 2020-06-30 | J20: 31.05.20 - 30.06.20 (1 months) | K20: As per FFR framework agreement | L20: 2300 | M20: 700 | N20: 8 | O20: 2300 | P20: 700 | Q20: 8 | R20: 2300 | S20: 700 | T20: 8 | U20: 62.8 | AC20: 4 | AD20: 10 | AE20: 10 | AF20: 4 | AG20: 10 | AH20: 4 | AI20: 10 | AL20: A
A21: 125.015 | B21: Rejected | C21: 1.2 | D21: BESS HoldCo 2 Ltd | E21: DBESS-22 | F21: DNO connection | G21: Battery | H21: 2020-06-01 | I21: 2020-06-30 | J21: 01.06.20 - 30.06.20 (1 months) | K21: As per FFR framework agreement | L21: 700 | M21: 2300 | N21: 16 | O21: 700 | P21: 2300 | Q21: 16 | R21: 700 | S21: 2300 | T21: 16 | U21: 75.5 | AC21: 4 | AD21: 10 | AE21: 10 | AF21: 4 | AG21: 10 | AH21: 4 | AI21: 10 | AL21: B
A22: 125.016 | B22: Accepted | C22: NA | D22: BESS HoldCo 3 Ltd | E22: DBESSH-33 | F22: DNO connection | G22: Battery | H22: 2020-05-31 | I22: 2020-06-30 | J22: 31.05.20 - 30.06.20 (1 months) | K22: As per FFR framework agreement | L22: 2300 | M22: 700 | N22: 8 | O22: 2300 | P22: 700 | Q22: 8 | R22: 2300 | S22: 700 | T22: 8 | U22: 62.7 | AC22: 4 | AD22: 10 | AE22: 10 | AF22: 4 | AG22: 10 | AH22: 4 | AI22: 10 | AL22: C
A23: 125.017 | B23: Accepted | C23: NA | D23: BESS HoldCo 3 Ltd | E23: DBESSH-33 | F23: DNO connection | G23: Battery | H23: 2020-06-01 | I23: 2020-06-30 | J23: 01.06.20 - 30.06.20 (1 months) | K23: As per FFR framework agreement | L23: 700 | M23: 1500 | N23: 8 | O23: 700 | P23: 1500 | Q23: 8 | R23: 700 | S23: 1500 | T23: 8 | U23: 71 | AC23: 4 | AD23: 10 | AE23: 10 | AF23: 4 | AG23: 10 | AH23: 4 | AI23: 10 | AL23: D
A24: 125.018 | B24: Accepted | C24: NA | D24: BESS HoldCo 3 Ltd | E24: DBESSH-33 | F24: DNO connection | G24: Battery | H24: 2020-06-01 | I24: 2020-06-30 | J24: 01.06.20 - 30.06.20 (1 months) | K24: As per FFR framework agreement | L24: 1500 | M24: 2300 | N24: 8 | O24: 1500 | P24: 2300 | Q24: 8 | R24: 1500 | S24: 2300 | T24: 8 | U24: 75.9 | AC24: 4 | AD24: 10 | AE24: 10 | AF24: 4 | AG24: 10 | AH24: 4 | AI24: 10 | AL24: E
A25: 125.019 | B25: Accepted | C25: NA | D25: BESS HoldCo 3 Ltd | E25: DBESSA-33 | F25: DNO connection | G25: Battery | H25: 2020-05-31 | I25: 2020-06-30 | J25: 31.05.20 - 30.06.20 (1 months) | K25: As per FFR framework agreement | L25: 2300 | M25: 700 | N25: 8 | O25: 2300 | P25: 700 | Q25: 8 | R25: 2300 | S25: 700 | T25: 8 | U25: 56.34 | AC25: 3.6 | AD25: 9 | AE25: 9 | AF25: 3.6 | AG25: 9 | AH25: 3.6 | AI25: 9 | AL25: F
A26: 125.02 | B26: Accepted | C26: NA | D26: BESS HoldCo 3 Ltd | E26: DBESSA-33 | F26: DNO connection | G26: Battery | H26: 2020-06-01 | I26: 2020-06-30 | J26: 01.06.20 - 30.06.20 (1 months) | K26: As per FFR framework agreement | L26: 700 | M26: 1500 | N26: 8 | O26: 700 | P26: 1500 | Q26: 8 | R26: 700 | S26: 1500 | T26: 8 | U26: 63.63 | AC26: 3.6 | AD26: 9 | AE26: 9 | AF26: 3.6 | AG26: 9 | AH26: 3.6 | AI26: 9 | AL26: G
A27: =A26+0.001 -> 125.021 | B27: Accepted | C27: NA | D27: BESS HoldCo 3 Ltd | E27: DBESSA-33 | F27: DNO connection | G27: Battery | H27: 2020-06-01 | I27: 2020-06-30 | J27: 01.06.20 - 30.06.20 (1 months) | K27: As per FFR framework agreement | L27: 1500 | M27: 2300 | N27: 8 | O27: 1500 | P27: 2300 | Q27: 8 | R27: 1500 | S27: 2300 | T27: 8 | U27: 69.3 | AC27: 3.6 | AD27: 9 | AE27: 9 | AF27: 3.6 | AG27: 9 | AH27: 3.6 | AI27: 9 | AL27: H
A28: =A27+0.001 -> 125.022 | B28: Accepted | C28: NA | D28: BESS HoldCo 3 Ltd | E28: DBESSC-33 | F28: DNO connection | G28: Battery | H28: 2020-05-31 | I28: 2020-06-30 | J28: 31.05.20 - 30.06.20 (1 months) | K28: As per FFR framework agreement | L28: 2300 | M28: 700 | N28: 8 | O28: 2300 | P28: 700 | Q28: 8 | R28: 2300 | S28: 700 | T28: 8 | U28: 62.5 | AC28: 4 | AD28: 10 | AE28: 10 | AF28: 4 | AG28: 10 | AH28: 4 | AI28: 10 | AL28: I
A29: =A28+0.001 -> 125.023 | B29: Accepted | C29: NA | D29: BESS HoldCo 3 Ltd | E29: DBESSC-33 | F29: DNO connection | G29: Battery | H29: 2020-06-01 | I29: 2020-06-30 | J29: 01.06.20 - 30.06.20 (1 months) | K29: As per FFR framework agreement | L29: 700 | M29: 1500 | N29: 8 | O29: 700 | P29: 1500 | Q29: 8 | R29: 700 | S29: 1500 | T29: 8 | U29: 70.5 | AC29: 4 | AD29: 10 | AE29: 10 | AF29: 4 | AG29: 10 | AH29: 4 | AI29: 10 | AL29: J
A30: =A29+0.001 -> 125.024 | B30: Accepted | C30: NA | D30: BESS HoldCo 3 Ltd | E30: DBESSC-33 | F30: DNO connection | G30: Battery | H30: 2020-06-01 | I30: 2020-06-30 | J30: 01.06.20 - 30.06.20 (1 months) | K30: As per FFR framework agreement | L30: 1500 | M30: 2300 | N30: 8 | O30: 1500 | P30: 2300 | Q30: 8 | R30: 1500 | S30: 2300 | T30: 8 | U30: 75.75 | AC30: 4 | AD30: 10 | AE30: 10 | AF30: 4 | AG30: 10 | AH30: 4 | AI30: 10 | AL30: K
A31: =A30+0.001 -> 125.025 | B31: Accepted | C31: NA | D31: BESS HoldCo 3 Ltd | E31: DBESSF-33 | F31: DNO connection | G31: Battery | H31: 2020-05-31 | I31: 2020-06-30 | J31: 31.05.20 - 30.06.20 (1 months) | K31: As per FFR framework agreement | L31: 2300 | M31: 700 | N31: 8 | O31: 2300 | P31: 700 | Q31: 8 | R31: 2300 | S31: 700 | T31: 8 | U31: 62.4 | AC31: 4 | AD31: 10 | AE31: 10 | AF31: 4 | AG31: 10 | AH31: 4 | AI31: 10 | AL31: L
A32: 125.026 | B32: Accepted | C32: NA | D32: BESS HoldCo 3 Ltd | E32: DBESSF-33 | F32: DNO connection | G32: Battery | H32: 2020-06-01 | I32: 2020-06-30 | J32: 01.06.20 - 30.06.20 (1 months) | K32: As per FFR framework agreement | L32: 700 | M32: 1500 | N32: 8 | O32: 700 | P32: 1500 | Q32: 8 | R32: 700 | S32: 1500 | T32: 8 | U32: 70.2 | AC32: 4 | AD32: 10 | AE32: 10 | AF32: 4 | AG32: 10 | AH32: 4 | AI32: 10 | AL32: M
A33: 125.027 | B33: Accepted | C33: NA | D33: BESS HoldCo 3 Ltd | E33: DBESSF-33 | F33: DNO connection | G33: Battery | H33: 2020-06-01 | I33: 2020-06-30 | J33: 01.06.20 - 30.06.20 (1 months) | K33: As per FFR framework agreement | L33: 1500 | M33: 2300 | N33: 8 | O33: 1500 | P33: 2300 | Q33: 8 | R33: 1500 | S33: 2300 | T33: 8 | U33: 75 | AC33: 4 | AD33: 10 | AE33: 10 | AF33: 4 | AG33: 10 | AH33: 4 | AI33: 10 | AL33: N
A34: 125.028 | B34: Accepted | C34: NA | D34: Centrica Brigg Ltd | E34: ROOSB-1 | F34: DNO connection | G34: Battery | H34: 2020-05-31 | I34: 2020-06-30 | J34: 31.05.20 - 30.06.20 (1 months) | K34: As per FFR framework agreement | L34: 2300 | M34: 700 | N34: 8 | O34: 2300 | P34: 700 | Q34: 8 | R34: 2300 | S34: 700 | T34: 8 | U34: 278.55 | V34: 0 | W34: 0 | X34: Yes | Y34: 4 | Z34: 0 | AA34: 45 | AB34: 4 | AC34: 18 | AD34: 45 | AE34: 45 | AF34: 18 | AG34: 45 | AH34: 18 | AI34: 45
A35: 125.029 | B35: Accepted | C35: NA | D35: Centrica Brigg Ltd | E35: ROOSB-1 | F35: DNO connection | G35: Battery | H35: 2020-06-01 | I35: 2020-06-30 | J35: 01.06.20 - 30.06.20 (1 months) | K35: As per FFR framework agreement | L35: 700 | M35: 1500 | N35: 8 | O35: 700 | P35: 1500 | Q35: 8 | R35: 700 | S35: 1500 | T35: 8 | U35: 315.45 | V35: 0 | W35: 0 | X35: Yes | Y35: 4 | Z35: 0 | AA35: 45 | AB35: 4 | AC35: 18 | AD35: 45 | AE35: 45 | AF35: 18 | AG35: 45 | AH35: 18 | AI35: 45
A36: 125.03 | B36: Accepted | C36: NA | D36: Centrica Brigg Ltd | E36: ROOSB-1 | F36: DNO connection | G36: Battery | H36: 2020-06-01 | I36: 2020-06-30 | J36: 01.06.20 - 30.06.20 (1 months) | K36: As per FFR framework agreement | L36: 1500 | M36: 2300 | N36: 8 | O36: 1500 | P36: 2300 | Q36: 8 | R36: 1500 | S36: 2300 | T36: 8 | U36: 337.05 | V36: 0 | W36: 0 | X36: Yes | Y36: 4 | Z36: 0 | AA36: 45 | AB36: 4 | AC36: 18 | AD36: 45 | AE36: 45 | AF36: 18 | AG36: 45 | AH36: 18 | AI36: 45
A37: 125.031 | B37: Accepted | C37: NA | D37: REstore Flexpond UK Ltd | E37: REST-1 | F37: DNO connection | G37: Multiple Fuel Type | H37: 2020-05-31 | I37: 2020-06-30 | J37: 31.05.20 - 30.06.20 (1 months) | K37: As per FFR framework agreement | L37: 2300 | M37: 700 | N37: 8 | O37: 2300 | P37: 700 | Q37: 8 | R37: 2300 | S37: 700 | T37: 8 | U37: 30.95 | V37: 0 | W37: 0 | AC37: 2 | AD37: 5 | AE37: 5 | AF37: 2 | AG37: 5 | AH37: 2 | AI37: 5
A38: 125.032 | B38: Accepted | C38: NA | D38: REstore Flexpond UK Ltd | E38: REST-1 | F38: DNO connection | G38: Multiple Fuel Type | H38: 2020-06-01 | I38: 2020-06-30 | J38: 01.06.20 - 30.06.20 (1 months) | K38: As per FFR framework agreement | L38: 700 | M38: 1500 | N38: 8 | O38: 700 | P38: 1500 | Q38: 8 | R38: 700 | S38: 1500 | T38: 8 | U38: 35.05 | V38: 0 | W38: 0 | AC38: 2 | AD38: 5 | AE38: 5 | AF38: 2 | AG38: 5 | AH38: 2 | AI38: 5
A39: 125.033 | B39: Accepted | C39: NA | D39: REstore Flexpond UK Ltd | E39: REST-1 | F39: DNO connection | G39: Multiple Fuel Type | H39: 2020-06-01 | I39: 2020-06-30 | J39: 01.06.20 - 30.06.20 (1 months) | K39: As per FFR framework agreement | L39: 1500 | M39: 2300 | N39: 8 | O39: 1500 | P39: 2300 | Q39: 8 | R39: 1500 | S39: 2300 | T39: 8 | U39: 39.95 | V39: 0 | W39: 0 | AC39: 2 | AD39: 5 | AE39: 5 | AF39: 2 | AG39: 5 | AH39: 2 | AI39: 5
A40: 125.034 | B40: Accepted | C40: NA | D40: Centrica Business Solutions Optimisation UK Ltd | E40: CBS0-1 | F40: DNO connection | G40: DSF: Distributed generation (onsite) | H40: 2020-06-01 | I40: 2020-06-30 | J40: 01.06.20 - 30.06.20 (1 months) | K40: As per FFR framework agreement | L40: 700 | M40: 2300 | N40: 16 | O40: 700 | P40: 2300 | Q40: 16 | R40: 700 | S40: 2300 | T40: 16 | U40: 3.98 | V40: 0 | W40: 0 | AO40: 2 | AP40: 2MW Static
A41: 125.035 | B41: Accepted | C41: NA | D41: Centrica Business Solutions Optimisation UK Ltd | E41: CBS0-1 | F41: DNO connection | G41: DSF: Distributed generation (onsite) | H41: 2020-05-31 | I41: 2020-06-30 | J41: 31.05.20 - 30.06.20 (1 months) | K41: As per FFR framework agreement | L41: 2300 | M41: 700 | N41: 8 | O41: 2300 | P41: 700 | Q41: 8 | R41: 2300 | S41: 700 | T41: 8 | U41: 3 | V41: 0 | W41: 0 | AO41: 2 | AP41: 2MW Static
A42: 125.036 | B42: Rejected | C42: 2 | D42: City Energy Management Services Ltd. | E42: CMFH-1 | F42: DNO connection | G42: DSF: Load response | H42: 2020-05-31 | I42: 2020-06-30 | J42: 31.05.20 - 30.06.20 (1 months) | K42: As per FFR framework agreement | L42: 2300 | M42: 700 | N42: 8 | O42: 2300 | P42: 700 | Q42: 8 | R42: 2300 | S42: 700 | T42: 8 | U42: 1 | V42: 1.15 | AO42: 1
A43: 125.037 | B43: Accepted | C43: NA | D43: City Energy Management Services Ltd. | E43: CMFH-1 | F43: DNO connection | G43: DSF: Load response | H43: 2020-06-01 | I43: 2020-06-30 | J43: 01.06.20 - 30.06.20 (1 months) | K43: As per FFR framework agreement | L43: 700 | M43: 1500 | N43: 8 | O43: 700 | P43: 1500 | Q43: 8 | R43: 700 | S43: 1500 | T43: 8 | U43: 2 | V43: 3.49 | AO43: 2
A44: 125.038 | B44: Accepted | C44: NA | D44: City Energy Management Services Ltd. | E44: CMFH-1 | F44: DNO connection | G44: DSF: Load response | H44: 2020-06-01 | I44: 2020-06-30 | J44: 01.06.20 - 30.06.20 (1 months) | K44: As per FFR framework agreement | L44: 1900 | M44: 2300 | N44: 4 | O44: 1900 | P44: 2300 | Q44: 4 | R44: 1900 | S44: 2300 | T44: 4 | U44: 2 | V44: 3.08 | AO44: 2
A45: 125.039 | B45: Rejected | C45: 2 | D45: City Energy Management Services Ltd. | E45: CMFH-2 | F45: DNO connection | G45: DSF: Load response | H45: 2020-06-01 | I45: 2020-06-30 | J45: 01.06.20 - 30.06.20 (1 months) | K45: As per FFR framework agreement | L45: 300 | M45: 700 | N45: 4 | O45: 300 | P45: 700 | Q45: 4 | R45: 300 | S45: 700 | T45: 4 | U45: 1 | V45: 1.15 | AO45: 1
A46: 125.04 | B46: Accepted | C46: NA | D46: City Energy Management Services Ltd. | E46: CMFH-2 | F46: DNO connection | G46: DSF: Load response | H46: 2020-06-01 | I46: 2020-06-30 | J46: 01.06.20 - 30.06.20 (1 months) | K46: As per FFR framework agreement | L46: 1100 | M46: 1500 | N46: 4 | O46: 1100 | P46: 1500 | Q46: 4 | R46: 1100 | S46: 1500 | T46: 4 | U46: 1 | V46: 1.74 | AO46: 1
A47: 125.041 | B47: Accepted | C47: NA | D47: City Energy Management Services Ltd. | E47: CMFH-2 | F47: DNO connection | G47: DSF: Load response | H47: 2020-06-01 | I47: 2020-06-30 | J47: 01.06.20 - 30.06.20 (1 months) | K47: As per FFR framework agreement | L47: 1500 | M47: 1900 | N47: 4 | O47: 1500 | P47: 1900 | Q47: 4 | R47: 1500 | S47: 1900 | T47: 4 | U47: 3 | V47: 4.49 | AO47: 3
A48: 125.042 | B48: Accepted | C48: NA | D48: Flexitricity Limited | E48: AG-EFLX01 | F48: DNO connection | G48: DSF: Storage (for export) | H48: 2020-05-31 | I48: 2020-06-30 | J48: 31.05.20 - 30.06.20 (1 months) | K48: As per FFR framework agreement | L48: 2300 | M48: 700 | N48: 8 | O48: 2300 | P48: 700 | Q48: 8 | R48: 2300 | S48: 700 | T48: 8 | U48: 117.99 | X48: YES | AC48: 7.6 | AD48: 19 | AE48: 19 | AF48: 7.6 | AG48: 19 | AH48: 7.6 | AI48: 19
A49: 125.043 | B49: Accepted | C49: NA | D49: Flexitricity Limited | E49: AG-EFLX01 | F49: DNO connection | G49: DSF: Storage (for export) | H49: 2020-06-01 | I49: 2020-06-30 | J49: 01.06.20 - 30.06.20 (1 months) | K49: As per FFR framework agreement | L49: 700 | M49: 1500 | N49: 8 | O49: 700 | P49: 1500 | Q49: 8 | R49: 700 | S49: 1500 | T49: 8 | U49: 133 | X49: YES | AC49: 7.6 | AD49: 19 | AE49: 19 | AF49: 7.6 | AG49: 19 | AH49: 7.6 | AI49: 19
A50: 125.044 | B50: Accepted | C50: NA | D50: Flexitricity Limited | E50: AG-EFLX01 | F50: DNO connection | G50: DSF: Storage (for export) | H50: 2020-06-01 | I50: 2020-06-30 | J50: 01.06.20 - 30.06.20 (1 months) | K50: As per FFR framework agreement | L50: 1500 | M50: 2300 | N50: 8 | O50: 1500 | P50: 2300 | Q50: 8 | R50: 1500 | S50: 2300 | T50: 8 | U50: 148.2 | X50: YES | AC50: 7.6 | AD50: 19 | AE50: 19 | AF50: 7.6 | AG50: 19 | AH50: 7.6 | AI50: 19
A51: 125.045 | B51: Accepted | C51: NA | D51: Flexitricity Limited | E51: AG-BFLX01 | F51: DNO connection | G51: DSF: Storage (for export) | H51: 2020-05-31 | I51: 2020-06-30 | J51: 31.05.20 - 30.06.20 (1 months) | K51: As per FFR framework agreement | L51: 2300 | M51: 700 | N51: 8 | O51: 2300 | P51: 700 | Q51: 8 | R51: 2300 | S51: 700 | T51: 8 | U51: 44.1 | X51: YES | AC51: 2.8 | AD51: 7 | AE51: 7 | AF51: 2.8 | AG51: 7 | AH51: 2.8 | AI51: 7
A52: 125.046 | B52: Accepted | C52: NA | D52: Flexitricity Limited | E52: AG-BFLX01 | F52: DNO connection | G52: DSF: Storage (for export) | H52: 2020-06-01 | I52: 2020-06-30 | J52: 01.06.20 - 30.06.20 (1 months) | K52: As per FFR framework agreement | L52: 700 | M52: 1500 | N52: 8 | O52: 700 | P52: 1500 | Q52: 8 | R52: 700 | S52: 1500 | T52: 8 | U52: 49.56 | X52: YES | AC52: 2.8 | AD52: 7 | AE52: 7 | AF52: 2.8 | AG52: 7 | AH52: 2.8 | AI52: 7
A53: 125.047 | B53: Accepted | C53: NA | D53: Flexitricity Limited | E53: AG-BFLX01 | F53: DNO connection | G53: DSF: Storage (for export) | H53: 2020-06-01 | I53: 2020-06-30 | J53: 01.06.20 - 30.06.20 (1 months) | K53: As per FFR framework agreement | L53: 1500 | M53: 2300 | N53: 8 | O53: 1500 | P53: 2300 | Q53: 8 | R53: 1500 | S53: 2300 | T53: 8 | U53: 58.45 | X53: YES | AC53: 2.8 | AD53: 7 | AE53: 7 | AF53: 2.8 | AG53: 7 | AH53: 2.8 | AI53: 7
A54: 125.048 | B54: Accepted | C54: NA | D54: Flexitricity Limited | E54: AG-FLX00L | F54: DNO connection | G54: DSF: Storage (for export) | H54: 2020-05-31 | I54: 2020-06-30 | J54: 31.05.20 - 30.06.20 (1 months) | K54: As per FFR framework agreement | L54: 2300 | M54: 700 | N54: 8 | O54: 2300 | P54: 700 | Q54: 8 | R54: 2300 | S54: 700 | T54: 8 | U54: 24.84 | X54: YES | AC54: 1.6 | AD54: 4 | AE54: 4 | AF54: 1.6 | AG54: 4 | AH54: 1.6 | AI54: 4
A55: 125.049 | B55: Accepted | C55: NA | D55: Flexitricity Limited | E55: AG-FLX00L | F55: DNO connection | G55: DSF: Storage (for export) | H55: 2020-06-01 | I55: 2020-06-30 | J55: 01.06.20 - 30.06.20 (1 months) | K55: As per FFR framework agreement | L55: 700 | M55: 1500 | N55: 8 | O55: 700 | P55: 1500 | Q55: 8 | R55: 700 | S55: 1500 | T55: 8 | U55: 28.4 | X55: YES | AC55: 1.6 | AD55: 4 | AE55: 4 | AF55: 1.6 | AG55: 4 | AH55: 1.6 | AI55: 4
A56: 125.05 | B56: Accepted | C56: NA | D56: Flexitricity Limited | E56: AG-FLX00L | F56: DNO connection | G56: DSF: Storage (for export) | H56: 2020-06-01 | I56: 2020-06-30 | J56: 01.06.20 - 30.06.20 (1 months) | K56: As per FFR framework agreement | L56: 1500 | M56: 2300 | N56: 8 | O56: 1500 | P56: 2300 | Q56: 8 | R56: 1500 | S56: 2300 | T56: 8 | U56: 33.8 | X56: YES | AC56: 1.6 | AD56: 4 | AE56: 4 | AF56: 1.6 | AG56: 4 | AH56: 1.6 | AI56: 4
A57: 125.051 | B57: Accepted | C57: NA | D57: Flexitricity Limited | E57: SFLEX-3 | F57: DNO connection | G57: DSF: Load response | H57: 2020-06-01 | I57: 2020-06-30 | J57: 01.06.20 - 30.06.20 (1 months) | K57: As per FFR framework agreement | L57: 700 | M57: 1500 | N57: 8 | O57: 700 | P57: 1500 | Q57: 8 | R57: 700 | S57: 1500 | T57: 8 | U57: 21 | AN57: 6 | AO57: 6
A58: 125.052 | B58: Accepted | C58: NA | D58: Flexitricity Limited | E58: SFLEX-3 | F58: DNO connection | G58: DSF: Load response | H58: 2020-06-01 | I58: 2020-06-30 | J58: 01.06.20 - 30.06.20 (1 months) | K58: As per FFR framework agreement | L58: 1500 | M58: 2300 | N58: 8 | O58: 1500 | P58: 2300 | Q58: 8 | R58: 1500 | S58: 2300 | T58: 8 | U58: 24 | AN58: 6 | AO58: 6
A59: 125.053 | B59: Rejected | C59: 2 | D59: Flexitricity Limited | E59: SFLEX-4 | F59: DNO connection | G59: DSF: Load response | H59: 2020-06-01 | I59: 2020-06-30 | J59: 01.06.20 - 30.06.20 (1 months) | K59: As per FFR framework agreement | L59: 700 | M59: 1500 | N59: 8 | U59: 45 | AN59: 10 | AO59: 10
A60: 125.054 | B60: Accepted | C60: NA | D60: Flexitricity Limited | E60: SFLEX-5 | F60: DNO connection | G60: DSF: Load response | H60: 2020-06-01 | I60: 2020-06-30 | J60: 01.06.20 - 30.06.20 (1 months) | K60: As per FFR framework agreement | L60: 700 | M60: 1500 | N60: 8 | O60: 700 | P60: 1500 | Q60: 8 | R60: 700 | S60: 1500 | T60: 8 | U60: 38.5 | AN60: 11 | AO60: 11
A61: 125.055 | B61: Rejected | C61: 1.2 | D61: Flexitricity Limited | E61: SFLEX-5 | F61: DNO connection | G61: DSF: Load response | H61: 2020-06-01 | I61: 2020-06-30 | J61: 01.06.20 - 30.06.20 (1 months) | K61: As per FFR framework agreement | L61: 1500 | M61: 2300 | N61: 8 | O61: 1500 | P61: 2300 | Q61: 8 | R61: 1500 | S61: 2300 | T61: 8 | U61: 44 | AN61: 11 | AO61: 11
A62: 125.056 | B62: Rejected | C62: 1.2 | D62: GridBeyond Limited | E62: GBND-1 | F62: DNO connection | G62: DSF: Load response | H62: 2020-05-31 | I62: 2020-06-30 | J62: 31.05.20 - 30.06.20 (1 months) | K62: As per FFR framework agreement | L62: 2300 | M62: 2300 | N62: 24 | O62: 2300 | P62: 2300 | Q62: 24 | R62: 2300 | S62: 2300 | T62: 24 | U62: 22.05 | AC62: 1.2 | AD62: 3 | AE62: 3 | AF62: 1.2 | AG62: 3 | AH62: 1.2 | AI62: 3
A63: 125.057 | B63: Rejected | C63: 1.2 | D63: GridBeyond Limited | E63: GBND-2 | F63: DNO connection | G63: DSF: Load response | H63: 2020-05-31 | I63: 2020-06-30 | J63: 31.05.20 - 30.06.20 (1 months) | K63: As per FFR framework agreement | L63: 2300 | M63: 1500 | N63: 16 | U63: 95.16 | AC63: 5.2 | AD63: 13 | AE63: 13 | AF63: 5.2 | AG63: 13 | AH63: 5.2 | AI63: 13 | AL63: A | AM63: Mutually exclusive with B & C | AQ63: Mutual exclusive tenders
A64: 125.058 | B64: Rejected | C64: 1.2 | D64: GridBeyond Limited | E64: GBND-2 | F64: DNO connection | G64: DSF: Load response | H64: 2020-06-01 | I64: 2020-06-30 | J64: 01.06.20 - 30.06.20 (1 months) | K64: As per FFR framework agreement | L64: 1500 | M64: 2300 | N64: 8 | U64: 73.2 | AC64: 4 | AD64: 10 | AE64: 10 | AF64: 4 | AG64: 10 | AH64: 4 | AI64: 10 | AL64: A | AM64: Mutually exclusive with B & C | AQ64: Mutual exclusive tenders
A65: 125.059 | B65: Rejected | C65: 1.2 | D65: GridBeyond Limited | E65: GBND-2 | F65: DNO connection | G65: DSF: Load response | H65: 2020-05-31 | I65: 2020-06-30 | J65: 31.05.20 - 30.06.20 (1 months) | K65: As per FFR framework agreement | O65: 2300 | P65: 2300 | Q65: 24 | R65: 2300 | S65: 2300 | T65: 24 | U65: 43.92 | AC65: 2.4 | AD65: 6 | AE65: 6 | AF65: 2.4 | AG65: 6 | AH65: 2.4 | AI65: 6 | AL65: A | AM65: Mutually exclusive with B & C | AQ65: Mutual exclusive tenders
A66: =A65+0.001 -> 125.06 | B66: Rejected | C66: 1.2 | D66: GridBeyond Limited | E66: GBND-2 | F66: DNO connection | G66: DSF: Load response | H66: 2020-05-31 | I66: 2020-06-30 | J66: 31.05.20 - 30.06.20 (1 months) | K66: As per FFR framework agreement | L66: 2300 | M66: 1500 | N66: 16 | U66: 95.55 | AC66: 5.2 | AD66: 13 | AE66: 13 | AF66: 5.2 | AG66: 13 | AH66: 5.2 | AI66: 13 | AL66: B | AM66: Mutually exclusive with A | AQ66: Mutual exclusive tenders
A67: =A66+0.001 -> 125.061 | B67: Rejected | C67: 1.2 | D67: GridBeyond Limited | E67: GBND-2 | F67: DNO connection | G67: DSF: Load response | H67: 2020-06-01 | I67: 2020-06-30 | J67: 01.06.20 - 30.06.20 (1 months) | K67: As per FFR framework agreement | L67: 1500 | M67: 2300 | N67: 8 | U67: 73.5 | AC67: 4 | AD67: 10 | AE67: 10 | AF67: 4 | AG67: 10 | AH67: 4 | AI67: 10 | AL67: B | AM67: Mutually exclusive with A | AQ67: Mutual exclusive tenders
A68: =A65+0.003 -> 125.062 | B68: Rejected | C68: 1.2 | D68: GridBeyond Limited | E68: GBND-2 | F68: DNO connection | G68: DSF: Load response | H68: 2020-05-31 | I68: 2020-06-30 | J68: =IFERROR(TEXT(H68,"DD.MM.YY")&" - "&TEXT(I68,"DD.MM.YY")&" ("&DATEDIF(H68,I68+1,"m")&" months)","Tender End Date is Before Start Date") -> 31.05.20 - 30.06.20 (1 months) | K68: As per FFR framework agreement | O68: 2300 | P68: 2300 | Q68: 24 | R68: 2300 | S68: 2300 | T68: 24 | U68: 44.1 | AC68: 2.4 | AD68: 6 | AE68: 6 | AF68: 2.4 | AG68: 6 | AH68: 2.4 | AI68: 6 | AL68: C | AM68: Mutually exclusive with A | AQ68: Mutual exclusive tenders
A69: =A68+0.001 -> 125.063 | B69: Rejected | C69: 2 | D69: GridBeyond Limited | E69: ENDSR-1 | F69: DNO connection | G69: DSF: Load response | H69: 2020-06-01 | I69: 2020-06-30 | J69: =IFERROR(TEXT(H69,"DD.MM.YY")&" - "&TEXT(I69,"DD.MM.YY")&" ("&DATEDIF(H69,I69+1,"m")&" months)","Tender End Date is Before Start Date") -> 01.06.20 - 30.06.20 (1 months) | K69: As per FFR framework agreement | L69: 700 | M69: 1100 | N69: 4 | O69: 700 | P69: 1100 | Q69: 4 | R69: 700 | S69: 1100 | T69: 4 | U69: 18 | AO69: 4
A70: =A69+0.001 -> 125.064 | B70: Rejected | C70: 2 | D70: GridBeyond Limited | E70: ENDSR-1 | F70: DNO connection | G70: DSF: Load response | H70: 2020-06-01 | I70: 2020-06-30 | J70: =IFERROR(TEXT(H70,"DD.MM.YY")&" - "&TEXT(I70,"DD.MM.YY")&" ("&DATEDIF(H70,I70+1,"m")&" months)","Tender End Date is Before Start Date") -> 01.06.20 - 30.06.20 (1 months) | K70: As per FFR framework agreement | L70: 1100 | M70: 1500 | N70: 4 | O70: 1100 | P70: 1500 | Q70: 4 | R70: 1100 | S70: 1500 | T70: 4 | U70: 18 | AO70: 4
A71: =A70+0.001 -> 125.065 | B71: Rejected | C71: 2 | D71: GridBeyond Limited | E71: ENDSR-1 | F71: DNO connection | G71: DSF: Load response | H71: 2020-06-01 | I71: 2020-06-30 | J71: 01.06.20 - 30.06.20 (1 months) | K71: As per FFR framework agreement | L71: 1500 | M71: 2300 | N71: 8 | O71: 1500 | P71: 2300 | Q71: 8 | R71: 1500 | S71: 2300 | T71: 8 | U71: 18 | AO71: 3
A72: =A71+0.001 -> 125.066 | B72: Rejected | C72: 2 | D72: GridBeyond Limited | E72: ENDSR-2 | F72: DNO connection | G72: DSF: Load response | H72: 2020-06-01 | I72: 2020-06-30 | J72: =IFERROR(TEXT(H72,"DD.MM.YY")&" - "&TEXT(I72,"DD.MM.YY")&" ("&DATEDIF(H72,I72+1,"m")&" months)","Tender End Date is Before Start Date") -> 01.06.20 - 30.06.20 (1 months) | K72: As per FFR framework agreement | L72: 700 | M72: 1100 | N72: 4 | O72: 700 | P72: 1100 | Q72: 4 | R72: 700 | S72: 1100 | T72: 4 | U72: 14.16 | AO72: 3
A73: 125.067 | B73: Rejected | C73: 2 | D73: GridBeyond Limited | E73: ENDSR-2 | F73: DNO connection | G73: DSF: Load response | H73: 2020-06-01 | I73: 2020-06-30 | J73: 01.06.20 - 30.06.20 (1 months) | K73: As per FFR framework agreement | L73: 1100 | M73: 1500 | N73: 4 | O73: 1100 | P73: 1500 | Q73: 4 | R73: 1100 | S73: 1500 | T73: 4 | U73: 14.16 | AO73: 3
A74: 125.068 | B74: Accepted | C74: NA | D74: GridBeyond Limited | E74: ENDSR-2 | F74: DNO connection | G74: DSF: Load response | H74: 2020-06-01 | I74: 2020-06-30 | J74: 01.06.20 - 30.06.20 (1 months) | K74: As per FFR framework agreement | L74: 1500 | M74: 2300 | N74: 8 | O74: 1500 | P74: 2300 | Q74: 8 | R74: 1500 | S74: 2300 | T74: 8 | U74: 14.16 | AO74: 5
A75: 125.069 | B75: Rejected | C75: 2 | D75: GridBeyond Limited | E75: ENDSR-3 | F75: DNO connection | G75: DSF: Load response | H75: 2020-06-01 | I75: 2020-06-30 | J75: 01.06.20 - 30.06.20 (1 months) | K75: As per FFR framework agreement | L75: 700 | M75: 1100 | N75: 4 | O75: 700 | P75: 1100 | Q75: 4 | R75: 700 | S75: 1100 | T75: 4 | U75: 24.25 | AO75: 5
A76: 125.07 | B76: Rejected | C76: 2 | D76: GridBeyond Limited | E76: ENDSR-3 | F76: DNO connection | G76: DSF: Load response | H76: 2020-06-01 | I76: 2020-06-30 | J76: 01.06.20 - 30.06.20 (1 months) | K76: As per FFR framework agreement | L76: 1100 | M76: 1500 | N76: 4 | O76: 1100 | P76: 1500 | Q76: 4 | R76: 1100 | S76: 1500 | T76: 4 | U76: 24.25 | AO76: 5
A77: 125.071 | B77: Rejected | C77: 2 | D77: GridBeyond Limited | E77: ENDSR-3 | F77: DNO connection | G77: DSF: Load response | H77: 2020-06-01 | I77: 2020-06-30 | J77: 01.06.20 - 30.06.20 (1 months) | K77: As per FFR framework agreement | L77: 1500 | M77: 2300 | N77: 8 | O77: 1500 | P77: 2300 | Q77: 8 | R77: 1500 | S77: 2300 | T77: 8 | U77: 29.1 | AO77: 6
A78: 125.072 | B78: Rejected | C78: 2 | D78: GridBeyond Limited | E78: ENDSR-4 | F78: DNO connection | G78: DSF: Load response | H78: 2020-06-01 | I78: 2020-06-30 | J78: 01.06.20 - 30.06.20 (1 months) | K78: As per FFR framework agreement | L78: 700 | M78: 1100 | N78: 4 | O78: 700 | P78: 1100 | Q78: 4 | R78: 700 | S78: 1100 | T78: 4 | U78: 30 | AO78: 6
A79: =A78+0.001 -> 125.073 | B79: Rejected | C79: 2 | D79: GridBeyond Limited | E79: ENDSR-4 | F79: DNO connection | G79: DSF: Load response | H79: 2020-06-01 | I79: 2020-06-30 | J79: 01.06.20 - 30.06.20 (1 months) | K79: As per FFR framework agreement | L79: 1100 | M79: 1500 | N79: 4 | O79: 1100 | P79: 1500 | Q79: 4 | R79: 1100 | S79: 1500 | T79: 4 | U79: 30 | AO79: 6
A80: 125.074 | B80: Rejected | C80: 2 | D80: GridBeyond Limited | E80: ENDSR-4 | F80: DNO connection | G80: DSF: Load response | H80: 2020-06-01 | I80: 2020-06-30 | J80: 01.06.20 - 30.06.20 (1 months) | K80: As per FFR framework agreement | L80: 1500 | M80: 2300 | N80: 8 | O80: 1500 | P80: 2300 | Q80: 8 | R80: 1500 | S80: 2300 | T80: 8 | U80: 30 | AO80: 3
A81: 125.075 | B81: Accepted | C81: NA | D81: Habitat Energy Limited | E81: HAB1-FFR | F81: DNO connection | G81: DSF: Storage (for export) | H81: 2020-05-31 | I81: 2020-06-30 | J81: 31.05.20 - 30.06.20 (1 months) | K81: As per FFR framework agreement | L81: 2300 | M81: 700 | N81: 8 | O81: 2300 | P81: 700 | Q81: 8 | R81: 2300 | S81: 700 | T81: 8 | U81: 307.72 | V81: 0 | W81: 0 | X81: - | AC81: 19.6 | AD81: 49 | AE81: 49 | AF81: 19.6 | AG81: 49 | AH81: 19.6 | AI81: 49
A82: 125.076 | B82: Rejected | C82: 1.2 | D82: Habitat Energy Limited | E82: HAB1-FFR | F82: DNO connection | G82: DSF: Storage (for export) | H82: 2020-06-01 | I82: 2020-06-30 | J82: 01.06.20 - 30.06.20 (1 months) | K82: As per FFR framework agreement | L82: 700 | M82: 2300 | N82: 16 | O82: 700 | P82: 2300 | Q82: 16 | R82: 700 | S82: 2300 | T82: 16 | U82: 366.52 | V82: 0 | W82: 0 | X82: - | AC82: 19.6 | AD82: 49 | AE82: 49 | AF82: 19.6 | AG82: 49 | AH82: 19.6 | AI82: 49
A83: 125.077 | B83: Rejected | C83: 1.2 | D83: Habitat Energy Limited | E83: HAB2-FFR | F83: DNO connection | G83: DSF: Storage (for export) | H83: 2020-05-31 | I83: 2020-06-30 | J83: 31.05.20 - 30.06.20 (1 months) | K83: As per FFR framework agreement | L83: 2300 | M83: 700 | N83: 8 | O83: 2300 | P83: 700 | Q83: 8 | R83: 2300 | S83: 700 | T83: 8 | U83: 34.95 | V83: 0 | W83: 0 | X83: - | AC83: 2 | AD83: 5 | AE83: 5 | AF83: 2 | AG83: 5 | AH83: 2 | AI83: 5
A84: 125.078 | B84: Rejected | C84: 1.2 | D84: Habitat Energy Limited | E84: HAB2-FFR | F84: DNO connection | G84: DSF: Storage (for export) | H84: 2020-06-01 | I84: 2020-06-30 | J84: 01.06.20 - 30.06.20 (1 months) | K84: As per FFR framework agreement | L84: 700 | M84: 2300 | N84: 16 | O84: 700 | P84: 2300 | Q84: 16 | R84: 700 | S84: 2300 | T84: 16 | U84: 39.95 | V84: 0 | W84: 0 | X84: - | AC84: 2 | AD84: 5 | AE84: 5 | AF84: 2 | AG84: 5 | AH84: 2 | AI84: 5
A85: 125.079 | B85: Rejected | C85: 1.2 | D85: Habitat Energy Limited | E85: HAB3-FFR | F85: DNO connection | G85: DSF: Storage (for export) | H85: 2020-05-31 | I85: 2020-06-30 | J85: 31.05.20 - 30.06.20 (1 months) | K85: As per FFR framework agreement | L85: 2300 | M85: 700 | N85: 8 | O85: 2300 | P85: 700 | Q85: 8 | R85: 2300 | S85: 700 | T85: 8 | U85: 128.6 | V85: 0 | W85: 0 | X85: - | AC85: 8 | AD85: 20 | AE85: 20 | AF85: 8 | AG85: 20 | AH85: 4 | AI85: 10
A86: 125.08 | B86: Rejected | C86: 1.2 | D86: Habitat Energy Limited | E86: HAB3-FFR | F86: DNO connection | G86: DSF: Storage (for export) | H86: 2020-06-01 | I86: 2020-06-30 | J86: 01.06.20 - 30.06.20 (1 months) | K86: As per FFR framework agreement | L86: 700 | M86: 2300 | N86: 16 | O86: 700 | P86: 2300 | Q86: 16 | R86: 700 | S86: 2300 | T86: 16 | U86: 151.9 | V86: 0 | W86: 0 | X86: - | AC86: 8 | AD86: 20 | AE86: 20 | AF86: 8 | AG86: 20 | AH86: 4 | AI86: 10
A87: 125.081 | B87: Accepted | C87: NA | D87: Habitat Energy Limited | E87: HAB4-FFR | F87: DNO connection | G87: DSF: Storage (for export) | H87: 2020-05-31 | I87: 2020-06-30 | J87: 31.05.20 - 30.06.20 (1 months) | K87: As per FFR framework agreement | L87: 2300 | M87: 700 | N87: 8 | O87: 2300 | P87: 700 | Q87: 8 | R87: 2300 | S87: 700 | T87: 8 | U87: 222.48 | V87: 0 | W87: 0 | AC87: 14.4 | AD87: 36 | AE87: 36 | AF87: 14.4 | AG87: 36 | AH87: 14.4 | AI87: 36
A88: 125.082 | B88: Accepted | C88: NA | D88: Habitat Energy Limited | E88: HAB4-FFR | F88: DNO connection | G88: DSF: Storage (for export) | H88: 2020-06-01 | I88: 2020-06-30 | J88: 01.06.20 - 30.06.20 (1 months) | K88: As per FFR framework agreement | L88: 700 | M88: 1500 | N88: 8 | O88: 700 | P88: 1500 | Q88: 8 | R88: 700 | S88: 1500 | T88: 8 | U88: 251.28 | V88: 0 | W88: 0 | AC88: 14.4 | AD88: 36 | AE88: 36 | AF88: 14.4 | AG88: 36 | AH88: 14.4 | AI88: 36
A89: =A88+0.001 -> 125.083 | B89: Accepted | C89: NA | D89: Habitat Energy Limited | E89: HAB4-FFR | F89: DNO connection | G89: DSF: Storage (for export) | H89: 2020-06-01 | I89: 2020-06-30 | J89: 01.06.20 - 30.06.20 (1 months) | K89: As per FFR framework agreement | L89: 1500 | M89: 2300 | N89: 8 | O89: 1500 | P89: 2300 | Q89: 8 | R89: 1500 | S89: 2300 | T89: 8 | U89: 276.48 | V89: 0 | W89: 0 | AC89: 14.4 | AD89: 36 | AE89: 36 | AF89: 14.4 | AG89: 36 | AH89: 14.4 | AI89: 36
A90: 125.084 | B90: Rejected | C90: 1.2 | D90: Kiwi Power Ltd | E90: KIWIE-2 | F90: DNO connection | G90: DSF: Storage (onsite) | H90: 2020-05-31 | I90: 2020-06-30 | J90: 31.05.20 - 30.06.20 (1 months) | K90: As per FFR framework agreement | L90: 2300 | M90: 700 | N90: 8 | O90: 2300 | P90: 700 | Q90: 8 | R90: 2300 | S90: 700 | T90: 8 | U90: 26 | AC90: 1.6 | AD90: 4 | AE90: 4 | AF90: 1.6 | AG90: 4 | AH90: 1.6 | AI90: 4
A91: 125.085 | B91: Rejected | C91: 1.2 | D91: Kiwi Power Ltd | E91: KIWIDA-1 | F91: DNO connection | G91: DSF: Storage (onsite) | H91: 2020-05-31 | I91: 2020-06-30 | J91: 31.05.20 - 30.06.20 (1 months) | K91: As per FFR framework agreement | L91: 2300 | M91: 700 | N91: 8 | O91: 2300 | P91: 700 | Q91: 8 | R91: 2300 | S91: 700 | T91: 8 | U91: 14 | AC91: 0.8 | AD91: 2 | AE91: 2 | AF91: 0.8 | AG91: 2 | AH91: 0.8 | AI91: 2
A92: 125.086 | B92: Accepted | C92: NA | D92: Kiwi Power Ltd | E92: KIWIDA-1 | F92: DNO connection | G92: DSF: Storage (onsite) | H92: 2020-06-01 | I92: 2020-06-30 | J92: 01.06.20 - 30.06.20 (1 months) | K92: As per FFR framework agreement | L92: 700 | M92: 1500 | N92: 8 | O92: 700 | P92: 1500 | Q92: 8 | R92: 700 | S92: 1500 | T92: 8 | U92: 16 | AC92: 0.8 | AD92: 2 | AE92: 2 | AF92: 0.8 | AG92: 2 | AH92: 0.8 | AI92: 2
A93: =A92+0.001 -> 125.087 | B93: Accepted | C93: NA | D93: Kiwi Power Ltd | E93: KIWIDA-1 | F93: DNO connection | G93: DSF: Storage (onsite) | H93: 2020-06-01 | I93: 2020-06-30 | J93: 01.06.20 - 30.06.20 (1 months) | K93: As per FFR framework agreement | L93: 1500 | M93: 2300 | N93: 8 | O93: 1500 | P93: 2300 | Q93: 8 | R93: 1500 | S93: 2300 | T93: 8 | U93: 18 | AC93: 0.8 | AD93: 2 | AE93: 2 | AF93: 0.8 | AG93: 2 | AH93: 0.8 | AI93: 2
A94: 125.088 | B94: Rejected | C94: 1.2 | D94: Kiwi Power Ltd | E94: KIWIE-3 | F94: DNO connection | G94: DSF: Storage (onsite) | H94: 2020-05-31 | I94: 2020-06-30 | J94: 31.05.20 - 30.06.20 (1 months) | K94: As per FFR framework agreement | L94: 2300 | M94: 700 | N94: 8 | O94: 2300 | P94: 700 | Q94: 8 | R94: 2300 | S94: 700 | T94: 8 | U94: 96.75 | AC94: 6 | AD94: 15 | AE94: 15 | AF94: 6 | AG94: 15 | AH94: 6 | AI94: 15
A95: 125.089 | B95: Rejected | C95: 1.2 | D95: Kiwi Power Ltd | E95: KIWIE-3 | F95: DNO connection | G95: DSF: Storage (onsite) | H95: 2020-06-01 | I95: 2020-06-30 | J95: 01.06.20 - 30.06.20 (1 months) | K95: As per FFR framework agreement | L95: 700 | M95: 2300 | N95: 16 | O95: 700 | P95: 2300 | Q95: 16 | R95: 700 | S95: 2300 | T95: 16 | U95: 121.35 | AC95: 6 | AD95: 15 | AE95: 15 | AF95: 6 | AG95: 15 | AH95: 6 | AI95: 15
A96: 125.09 | B96: Accepted | C96: NA | D96: Kiwi Power Ltd | E96: KIWIS-1 | F96: DNO connection | G96: Multiple Fuel Type | H96: 2020-05-31 | I96: 2020-06-30 | J96: 31.05.20 - 30.06.20 (1 months) | K96: As per FFR framework agreement | L96: 2300 | M96: 300 | N96: 4 | O96: 2300 | P96: 300 | Q96: 4 | R96: 2300 | S96: 300 | T96: 4 | U96: 3.6 | AO96: 6
A97: 125.091 | B97: Accepted | C97: NA | D97: Kiwi Power Ltd | E97: KIWIS-1 | F97: DNO connection | G97: Multiple Fuel Type | H97: 2020-06-01 | I97: 2020-06-30 | J97: 01.06.20 - 30.06.20 (1 months) | K97: As per FFR framework agreement | L97: 300 | M97: 700 | N97: 4 | O97: 300 | P97: 700 | Q97: 4 | R97: 300 | S97: 700 | T97: 4 | U97: 14.4 | AO97: 16
A98: 125.092 | B98: Accepted | C98: NA | D98: Kiwi Power Ltd | E98: KIWIS-1 | F98: DNO connection | G98: Multiple Fuel Type | H98: 2020-06-01 | I98: 2020-06-30 | J98: 01.06.20 - 30.06.20 (1 months) | K98: As per FFR framework agreement | L98: 700 | M98: 2300 | N98: 16 | O98: 700 | P98: 2300 | Q98: 16 | R98: 700 | S98: 2300 | T98: 16 | U98: 28.8 | AO98: 16
A99: 125.093 | B99: Accepted | C99: NA | D99: Limejump Ltd | E99: LJDYN-6 | F99: DNO connection | G99: DSF: Storage (for export) | H99: 2020-06-01 | I99: 2020-06-30 | J99: 01.06.20 - 30.06.20 (1 months) | K99: As per FFR framework agreement | L99: 700 | M99: 1500 | N99: 8 | O99: 700 | P99: 1500 | Q99: 8 | R99: 700 | S99: 1500 | T99: 8 | U99: 141.4 | AC99: 8 | AD99: 20 | AE99: 20 | AF99: 8 | AG99: 20 | AH99: 8 | AI99: 20 | AP99: H for 30 minutes only
A100: 125.094 | B100: Accepted | C100: NA | D100: Limejump Ltd | E100: LJDYN-6 | F100: DNO connection | G100: DSF: Storage (for export) | H100: 2020-06-01 | I100: 2020-06-30 | J100: 01.06.20 - 30.06.20 (1 months) | K100: As per FFR framework agreement | L100: 1500 | M100: 2300 | N100: 8 | O100: 1500 | P100: 2300 | Q100: 8 | R100: 1500 | S100: 2300 | T100: 8 | U100: 163 | AC100: 8 | AD100: 20 | AE100: 20 | AF100: 8 | AG100: 20 | AH100: 8 | AI100: 20 | AP100: H for 30 minutes only
A101: 125.095 | B101: Accepted | C101: NA | D101: Limejump Ltd | E101: LJDYQ-1 | F101: DNO connection | G101: DSF: Storage (for export) | H101: 2020-05-31 | I101: 2020-06-30 | J101: 31.05.20 - 30.06.20 (1 months) | K101: As per FFR framework agreement | L101: 2300 | M101: 700 | N101: 8 | O101: 2300 | P101: 700 | Q101: 8 | R101: 2300 | S101: 700 | T101: 8 | U101: 73.8 | AC101: 4.8 | AD101: 12 | AE101: 12 | AF101: 4.8 | AG101: 12 | AH101: 4.8 | AI101: 12 | AP101: H for 30 minutes only
A102: 125.096 | B102: Accepted | C102: NA | D102: Limejump Ltd | E102: LJDYQ-1 | F102: DNO connection | G102: DSF: Storage (for export) | H102: 2020-06-01 | I102: 2020-06-30 | J102: 01.06.20 - 30.06.20 (1 months) | K102: As per FFR framework agreement | L102: 700 | M102: 1500 | N102: 8 | O102: 700 | P102: 1500 | Q102: 8 | R102: 700 | S102: 1500 | T102: 8 | U102: 84.8 | AC102: 4.8 | AD102: 12 | AE102: 12 | AF102: 4.8 | AG102: 12 | AH102: 4.8 | AI102: 12 | AP102: H for 30 minutes only
A103: 125.097 | B103: Accepted | C103: NA | D103: Limejump Ltd | E103: LJDYQ-1 | F103: DNO connection | G103: DSF: Storage (for export) | H103: 2020-06-01 | I103: 2020-06-30 | J103: 01.06.20 - 30.06.20 (1 months) | K103: As per FFR framework agreement | L103: 1500 | M103: 2300 | N103: 8 | O103: 1500 | P103: 2300 | Q103: 8 | R103: 1500 | S103: 2300 | T103: 8 | U103: 97.8 | AC103: 4.8 | AD103: 12 | AE103: 12 | AF103: 4.8 | AG103: 12 | AH103: 4.8 | AI103: 12 | AP103: H for 30 minutes only
A104: 125.098 | B104: Accepted | C104: NA | D104: Limejump Energy Ltd | E104: AG-BLIM02 | F104: TO connection | G104: DSF: Storage (for export) | H104: 2020-05-31 | I104: 2020-06-30 | J104: 31.05.20 - 30.06.20 (1 months) | K104: As per FFR framework agreement | L104: 2300 | M104: 700 | N104: 8 | O104: 2300 | P104: 700 | Q104: 8 | R104: 2300 | S104: 700 | T104: 8 | U104: 69.19 | AC104: 4.4 | AD104: 11 | AE104: 11 | AF104: 4.4 | AG104: 11 | AH104: 4.4 | AI104: 11 | AP104: H for 30 minutes only
A105: 125.099 | B105: Accepted | C105: NA | D105: Limejump Energy Ltd | E105: AG-BLIM02 | F105: TO connection | G105: DSF: Storage (for export) | H105: 2020-06-01 | I105: 2020-06-30 | J105: 01.06.20 - 30.06.20 (1 months) | K105: As per FFR framework agreement | L105: 700 | M105: 1500 | N105: 8 | O105: 700 | P105: 1500 | Q105: 8 | R105: 700 | S105: 1500 | T105: 8 | U105: 70.9 | AC105: 4 | AD105: 10 | AE105: 10 | AF105: 4 | AG105: 10 | AH105: 4 | AI105: 10 | AP105: H for 30 minutes only
A106: 125.1 | B106: Accepted | C106: NA | D106: Limejump Energy Ltd | E106: AG-BLIM02 | F106: TO connection | G106: DSF: Storage (for export) | H106: 2020-06-01 | I106: 2020-06-30 | J106: 01.06.20 - 30.06.20 (1 months) | K106: As per FFR framework agreement | L106: 1500 | M106: 2300 | N106: 8 | O106: 1500 | P106: 2300 | Q106: 8 | R106: 1500 | S106: 2300 | T106: 8 | U106: 79.9 | AC106: 4 | AD106: 10 | AE106: 10 | AF106: 4 | AG106: 10 | AH106: 4 | AI106: 10 | AP106: H for 30 minutes only
A107: 125.101 | B107: Accepted | C107: NA | D107: Limejump Energy Ltd | E107: AG-FLIM01 | F107: TO connection | G107: DSF: Storage (for export) | H107: 2020-05-31 | I107: 2020-06-30 | J107: 31.05.20 - 30.06.20 (1 months) | K107: As per FFR framework agreement | L107: 2300 | M107: 700 | N107: 8 | O107: 2300 | P107: 700 | Q107: 8 | R107: 2300 | S107: 700 | T107: 8 | U107: 44.87 | AC107: 2.8 | AD107: 7 | AE107: 7 | AF107: 2.8 | AG107: 7 | AH107: 2.8 | AI107: 7 | AP107: H for 30 minutes only
A108: 125.102 | B108: Accepted | C108: NA | D108: Limejump Energy Ltd | E108: AG-FLIM01 | F108: TO connection | G108: DSF: Storage (for export) | H108: 2020-06-01 | I108: 2020-06-30 | J108: 01.06.20 - 30.06.20 (1 months) | K108: As per FFR framework agreement | L108: 700 | M108: 1500 | N108: 8 | O108: 700 | P108: 1500 | Q108: 8 | R108: 700 | S108: 1500 | T108: 8 | U108: 50.47 | AC108: 2.8 | AD108: 7 | AE108: 7 | AF108: 2.8 | AG108: 7 | AH108: 2.8 | AI108: 7 | AP108: H for 30 minutes only
A109: 125.103 | B109: Accepted | C109: NA | D109: Limejump Energy Ltd | E109: AG-FLIM01 | F109: TO connection | G109: DSF: Storage (for export) | H109: 2020-06-01 | I109: 2020-06-30 | J109: 01.06.20 - 30.06.20 (1 months) | K109: As per FFR framework agreement | L109: 1500 | M109: 2300 | N109: 8 | O109: 1500 | P109: 2300 | Q109: 8 | R109: 1500 | S109: 2300 | T109: 8 | U109: 60.83 | AC109: 2.8 | AD109: 7 | AE109: 7 | AF109: 2.8 | AG109: 7 | AH109: 2.8 | AI109: 7 | AP109: H for 30 minutes only
A110: 125.104 | B110: Accepted | C110: NA | D110: Limejump Energy Ltd | E110: AG-GLIM01 | F110: TO connection | G110: DSF: Storage (for export) | H110: 2020-05-31 | I110: 2020-06-30 | J110: 31.05.20 - 30.06.20 (1 months) | K110: As per FFR framework agreement | L110: 2300 | M110: 700 | N110: 8 | O110: 2300 | P110: 700 | Q110: 8 | R110: 2300 | S110: 700 | T110: 8 | U110: 12.86 | AC110: 0.8 | AD110: 2 | AE110: 2 | AF110: 0.8 | AG110: 2 | AH110: 0.8 | AI110: 2 | AP110: H for 30 minutes only
A111: 125.105 | B111: Accepted | C111: NA | D111: Limejump Energy Ltd | E111: AG-GLIM01 | F111: TO connection | G111: DSF: Storage (for export) | H111: 2020-06-01 | I111: 2020-06-30 | J111: 01.06.20 - 30.06.20 (1 months) | K111: As per FFR framework agreement | L111: 700 | M111: 1500 | N111: 8 | O111: 700 | P111: 1500 | Q111: 8 | R111: 700 | S111: 1500 | T111: 8 | U111: 14.46 | AC111: 0.8 | AD111: 2 | AE111: 2 | AF111: 0.8 | AG111: 2 | AH111: 0.8 | AI111: 2 | AP111: H for 30 minutes only
A112: 125.106 | B112: Accepted | C112: NA | D112: Limejump Energy Ltd | E112: AG-GLIM01 | F112: TO connection | G112: DSF: Storage (for export) | H112: 2020-06-01 | I112: 2020-06-30 | J112: 01.06.20 - 30.06.20 (1 months) | K112: As per FFR framework agreement | L112: 1500 | M112: 2300 | N112: 8 | O112: 1500 | P112: 2300 | Q112: 8 | R112: 1500 | S112: 2300 | T112: 8 | U112: 17.48 | AC112: 0.8 | AD112: 2 | AE112: 2 | AF112: 0.8 | AG112: 2 | AH112: 0.8 | AI112: 2 | AP112: H for 30 minutes only
A113: 125.107 | B113: Accepted | C113: NA | D113: Limejump Energy Ltd | E113: AG-HLIM01 | F113: TO connection | G113: DSF: Storage (for export) | H113: 2020-05-31 | I113: 2020-06-30 | J113: 31.05.20 - 30.06.20 (1 months) | K113: As per FFR framework agreement | L113: 2300 | M113: 700 | N113: 8 | O113: 2300 | P113: 700 | Q113: 8 | R113: 2300 | S113: 700 | T113: 8 | U113: 19.35 | AC113: 1.2 | AD113: 3 | AE113: 3 | AF113: 1.2 | AG113: 3 | AH113: 1.2 | AI113: 3 | AP113: H for 30 minutes only
A114: 125.108 | B114: Accepted | C114: NA | D114: Limejump Energy Ltd | E114: AG-HLIM01 | F114: TO connection | G114: DSF: Storage (for export) | H114: 2020-06-01 | I114: 2020-06-30 | J114: 01.06.20 - 30.06.20 (1 months) | K114: As per FFR framework agreement | L114: 700 | M114: 1500 | N114: 8 | O114: 700 | P114: 1500 | Q114: 8 | R114: 700 | S114: 1500 | T114: 8 | U114: 21.75 | AC114: 1.2 | AD114: 3 | AE114: 3 | AF114: 1.2 | AG114: 3 | AH114: 1.2 | AI114: 3 | AP114: H for 30 minutes only
A115: 125.109 | B115: Accepted | C115: NA | D115: Limejump Energy Ltd | E115: AG-HLIM01 | F115: TO connection | G115: DSF: Storage (for export) | H115: 2020-06-01 | I115: 2020-06-30 | J115: 01.06.20 - 30.06.20 (1 months) | K115: As per FFR framework agreement | L115: 1500 | M115: 2300 | N115: 8 | O115: 1500 | P115: 2300 | Q115: 8 | R115: 1500 | S115: 2300 | T115: 8 | U115: 26.37 | AC115: 1.2 | AD115: 3 | AE115: 3 | AF115: 1.2 | AG115: 3 | AH115: 1.2 | AI115: 3 | AP115: H for 30 minutes only
A116: 125.11 | B116: Rejected | C116: 1.2 | D116: Limejump Energy Ltd | E116: AG-ELIM02 | F116: TO connection | G116: DSF: Storage (for export) | H116: 2020-05-31 | I116: 2020-06-30 | J116: 31.05.20 - 30.06.20 (1 months) | K116: As per FFR framework agreement | L116: 2300 | M116: 700 | N116: 8 | O116: 2300 | P116: 700 | Q116: 8 | R116: 2300 | S116: 700 | T116: 8 | U116: 19.41 | AC116: 1.2 | AD116: 3 | AE116: 3 | AF116: 1.2 | AG116: 3 | AH116: 1.2 | AI116: 3 | AP116: H for 30 minutes only
A117: 125.111 | B117: Accepted | C117: NA | D117: Limejump Energy Ltd | E117: AG-ELIM02 | F117: TO connection | G117: DSF: Storage (for export) | H117: 2020-06-01 | I117: 2020-06-30 | J117: 01.06.20 - 30.06.20 (1 months) | K117: As per FFR framework agreement | L117: 700 | M117: 1500 | N117: 8 | O117: 700 | P117: 1500 | Q117: 8 | R117: 700 | S117: 1500 | T117: 8 | U117: 21.81 | AC117: 1.2 | AD117: 3 | AE117: 3 | AF117: 1.2 | AG117: 3 | AH117: 1.2 | AI117: 3 | AP117: H for 30 minutes only
A118: 125.112 | B118: Accepted | C118: NA | D118: Limejump Energy Ltd | E118: AG-ELIM02 | F118: TO connection | G118: DSF: Storage (for export) | H118: 2020-06-01 | I118: 2020-06-30 | J118: 01.06.20 - 30.06.20 (1 months) | K118: As per FFR framework agreement | L118: 1500 | M118: 2300 | N118: 8 | O118: 1500 | P118: 2300 | Q118: 8 | R118: 1500 | S118: 2300 | T118: 8 | U118: 26.52 | AC118: 1.2 | AD118: 3 | AE118: 3 | AF118: 1.2 | AG118: 3 | AH118: 1.2 | AI118: 3 | AP118: H for 30 minutes only
A119: 125.113 | B119: Accepted | C119: NA | D119: Limejump Ltd | E119: LJDYN-2 | F119: DNO connection | G119: DSF: Storage (for export) | H119: 2020-05-31 | I119: 2020-06-30 | J119: 31.05.20 - 30.06.20 (1 months) | K119: As per FFR framework agreement | L119: 2300 | M119: 700 | N119: 8 | O119: 2300 | P119: 700 | Q119: 8 | R119: 2300 | S119: 700 | T119: 8 | U119: 12.98 | AC119: 0.8 | AD119: 2 | AE119: 2 | AF119: 0.8 | AG119: 2 | AH119: 0.8 | AI119: 2 | AP119: H for 30 minutes only
A120: 125.114 | B120: Accepted | C120: NA | D120: Limejump Ltd | E120: LJDYN-2 | F120: DNO connection | G120: DSF: Storage (for export) | H120: 2020-06-01 | I120: 2020-06-30 | J120: =IFERROR(TEXT(H120,"DD.MM.YY")&" - "&TEXT(I120,"DD.MM.YY")&" ("&DATEDIF(H120,I120+1,"m")&" months)","Tender End Date is Before Start Date") -> 01.06.20 - 30.06.20 (1 months) | K120: As per FFR framework agreement | L120: 700 | M120: 1500 | N120: 8 | O120: 700 | P120: 1500 | Q120: 8 | R120: 700 | S120: 1500 | T120: 8 | U120: 14.58 | AC120: 0.8 | AD120: 2 | AE120: 2 | AF120: 0.8 | AG120: 2 | AH120: 0.8 | AI120: 2 | AP120: H for 30 minutes only
A121: 125.115 | B121: Accepted | C121: NA | D121: Limejump Ltd | E121: LJDYN-2 | F121: DNO connection | G121: DSF: Storage (for export) | H121: 2020-06-01 | I121: 2020-06-30 | J121: =IFERROR(TEXT(H121,"DD.MM.YY")&" - "&TEXT(I121,"DD.MM.YY")&" ("&DATEDIF(H121,I121+1,"m")&" months)","Tender End Date is Before Start Date") -> 01.06.20 - 30.06.20 (1 months) | K121: As per FFR framework agreement | L121: 1500 | M121: 2300 | N121: 8 | O121: 1500 | P121: 2300 | Q121: 8 | R121: 1500 | S121: 2300 | T121: 8 | U121: 17.78 | AC121: 0.8 | AD121: 2 | AE121: 2 | AF121: 0.8 | AG121: 2 | AH121: 0.8 | AI121: 2 | AP121: H for 30 minutes only
A122: 125.116 | B122: Rejected | C122: 2 | D122: Limejump Ltd | E122: LJFFR-1 | F122: DNO connection | G122: DSF: Distributed generation (for export) | H122: 2020-05-31 | I122: 2020-06-30 | J122: 31.05.20 - 30.06.20 (1 months) | K122: As per FFR framework agreement | L122: 2300 | M122: 700 | N122: 8 | O122: 2300 | P122: 700 | Q122: 8 | R122: 2300 | S122: 700 | T122: 8 | U122: 20 | AO122: 8
A123: 125.117 | B123: Accepted | C123: NA | D123: Limejump Ltd | E123: LJFFR-1 | F123: DNO connection | G123: DSF: Distributed generation (for export) | H123: 2020-06-01 | I123: 2020-06-30 | J123: 01.06.20 - 30.06.20 (1 months) | K123: As per FFR framework agreement | L123: 700 | M123: 1500 | N123: 8 | O123: 700 | P123: 1500 | Q123: 8 | R123: 700 | S123: 1500 | T123: 8 | U123: 22 | AO123: 8
A124: 125.118 | B124: Accepted | C124: NA | D124: Limejump Ltd | E124: LJFFR-1 | F124: DNO connection | G124: DSF: Distributed generation (for export) | H124: 2020-06-01 | I124: 2020-06-30 | J124: 01.06.20 - 30.06.20 (1 months) | K124: As per FFR framework agreement | L124: 1500 | M124: 2300 | N124: 8 | O124: 1500 | P124: 2300 | Q124: 8 | R124: 1500 | S124: 2300 | T124: 8 | U124: 20 | AO124: 8
A125: 125.119 | B125: Rejected | C125: 1.2 | D125: npower | E125: NPFRD-1 | F125: DNO connection | G125: Battery | H125: 2020-05-31 | I125: 2020-06-30 | J125: 31.05.20 - 30.06.20 (1 months) | K125: As per FFR framework agreement | L125: 2300 | M125: 700 | N125: 8 | O125: 2300 | P125: 700 | Q125: 8 | R125: 2300 | S125: 700 | T125: 8 | U125: 27.6 | AC125: 1.6 | AD125: 4 | AE125: 4 | AF125: 1.6 | AG125: 4 | AH125: 1.6 | AI125: 4 | AL125: A | AQ125: Mutual exclusive tenders
A126: 125.12 | B126: Accepted | C126: NA | D126: npower | E126: NPFRD-1 | F126: DNO connection | G126: Battery | H126: 2020-06-01 | I126: 2020-06-30 | J126: 01.06.20 - 30.06.20 (1 months) | K126: As per FFR framework agreement | L126: 700 | M126: 2300 | N126: 16 | O126: 700 | P126: 2300 | Q126: 16 | R126: 700 | S126: 2300 | T126: 16 | U126: 30 | AC126: 1.6 | AD126: 4 | AE126: 4 | AF126: 1.6 | AG126: 4 | AH126: 1.6 | AI126: 4 | AL126: B | AQ126: Mutual exclusive tenders
A127: 125.121 | B127: Rejected | C127: 1.2 | D127: npower | E127: NPFRD-1 | F127: DNO connection | G127: Battery | H127: 2020-05-31 | I127: 2020-06-30 | J127: 31.05.20 - 30.06.20 (1 months) | K127: As per FFR framework agreement | L127: 2300 | M127: 2300 | N127: 24 | O127: 2300 | P127: 2300 | Q127: 24 | R127: 2300 | S127: 2300 | T127: 24 | U127: 27 | AC127: 1.6 | AD127: 4 | AE127: 4 | AF127: 1.6 | AG127: 4 | AH127: 1.6 | AI127: 4 | AM127: Mutually Exclusive of tenders A&B | AQ127: Mutual exclusive tenders
A128: 125.122 | B128: Accepted | C128: NA | D128: Open Energi Limited | E128: OPEN-1 | F128: DNO connection | G128: DSF: Load response | H128: 2020-05-31 | I128: 2020-06-30 | J128: 31.05.20 - 30.06.20 (1 months) | K128: As per FFR framework agreement | L128: 2300 | M128: 700 | N128: 8 | O128: 2300 | P128: 700 | Q128: 8 | R128: 2300 | S128: 700 | T128: 8 | U128: 10 | AC128: 0.8 | AD128: 2 | AE128: 2 | AF128: 0.8 | AG128: 2 | AH128: 0.8 | AI128: 2 | AL128: A
A129: 125.123 | B129: Accepted | C129: NA | D129: Open Energi Limited | E129: OPEN-1 | F129: DNO connection | G129: DSF: Load response | H129: 2020-06-01 | I129: 2020-06-30 | J129: 01.06.20 - 30.06.20 (1 months) | K129: As per FFR framework agreement | L129: 700 | M129: 1500 | N129: 8 | O129: 700 | P129: 2300 | Q129: 16 | R129: 700 | S129: 2300 | T129: 16 | U129: 14.5 | AC129: 1.2 | AD129: 3 | AE129: 3 | AF129: 1.2 | AG129: 3 | AH129: 0.8 | AI129: 2 | AL129: B
A130: 125.124 | B130: Accepted | C130: NA | D130: Open Energi Limited | E130: OPEN-1 | F130: DNO connection | G130: DSF: Load response | H130: 2020-06-01 | I130: 2020-06-30 | J130: 01.06.20 - 30.06.20 (1 months) | K130: As per FFR framework agreement | L130: 1500 | M130: 1900 | N130: 4 | U130: 10 | AC130: 0.4 | AD130: 1 | AE130: 1 | AF130: 0.4 | AG130: 1 | AH130: 0.4 | AI130: 1 | AL130: C
A131: 125.125 | B131: Accepted | C131: NA | D131: Open Energi Limited | E131: OPEN-1 | F131: DNO connection | G131: DSF: Load response | H131: 2020-06-01 | I131: 2020-06-30 | J131: 01.06.20 - 30.06.20 (1 months) | K131: As per FFR framework agreement | L131: 1900 | M131: 2300 | N131: 4 | U131: 11.6 | AC131: 0.8 | AD131: 2 | AE131: 2 | AF131: 0.8 | AG131: 2 | AH131: 0.8 | AI131: 2 | AL131: B
A132: 125.126 | B132: Accepted | C132: NA | D132: Open Energi Limited | E132: OPEN-2 | F132: DNO connection | G132: DSF: Storage (onsite) | H132: 2020-05-31 | I132: 2020-06-30 | J132: =IFERROR(TEXT(H132,"DD.MM.YY")&" - "&TEXT(I132,"DD.MM.YY")&" ("&DATEDIF(H132,I132+1,"m")&" months)","Tender End Date is Before Start Date") -> 31.05.20 - 30.06.20 (1 months) | K132: As per FFR framework agreement | L132: 2300 | M132: 700 | N132: 8 | O132: 2300 | P132: 700 | Q132: 8 | R132: 2300 | S132: 700 | T132: 8 | U132: 16.2 | AC132: 1.2 | AD132: 3 | AE132: 3 | AF132: 1.2 | AG132: 3 | AH132: 1.2 | AI132: 3 | AL132: D
A133: 125.127 | B133: Accepted | C133: NA | D133: Open Energi Limited | E133: OPEN-2 | F133: DNO connection | G133: DSF: Storage (onsite) | H133: 2020-06-01 | I133: 2020-06-30 | J133: 01.06.20 - 30.06.20 (1 months) | K133: As per FFR framework agreement | L133: 700 | M133: 2300 | N133: 16 | O133: 700 | P133: 2300 | Q133: 16 | R133: 700 | S133: 2300 | T133: 16 | U133: 6 | AC133: 0.4 | AD133: 1 | AE133: 1 | AF133: 0.4 | AG133: 1 | AH133: 0.4 | AI133: 1 | AJ133: Yes | AK133: 108.217 | AL133: E | AQ133: We checked mentioned tender # and the request is within agreed period
A134: 125.128 | B134: Rejected | C134: 1.2 | D134: Peak Gen | E134: PETDAG-1 | F134: DNO connection | G134: DSF: Storage (for export) | H134: 2020-05-31 | I134: 2020-06-30 | J134: 31.05.20 - 30.06.20 (1 months) | K134: As per FFR framework agreement | L134: 2300 | M134: 700 | N134: 8 | O134: 2300 | P134: 700 | Q134: 8 | R134: 2300 | S134: 700 | T134: 8 | U134: 31.99 | AC134: 1.6 | AD134: 4 | AE134: 4 | AF134: 1.6 | AG134: 4 | AH134: 1.6 | AI134: 4
A135: 125.129 | B135: Rejected | C135: 1.2 | D135: Peak Gen | E135: PETDAG-2 | F135: DNO connection | G135: DSF: Storage (for export) | H135: 2020-05-31 | I135: 2020-06-30 | J135: 31.05.20 - 30.06.20 (1 months) | K135: As per FFR framework agreement | L135: 2300 | M135: 700 | N135: 8 | O135: 2300 | P135: 700 | Q135: 8 | R135: 2300 | S135: 700 | T135: 8 | U135: 23.99 | AC135: 1.2 | AD135: 3 | AE135: 3 | AF135: 1.2 | AG135: 3 | AH135: 1.2 | AI135: 3
A136: 125.13 | B136: Accepted | C136: NA | D136: Peak Gen | E136: PGFFR-8 | F136: DNO connection | G136: DSF: Distributed generation (for export) | H136: 2020-06-01 | I136: 2020-06-30 | J136: 01.06.20 - 30.06.20 (1 months) | K136: As per FFR framework agreement | L136: 700 | M136: 1500 | N136: 8 | O136: 700 | P136: 1500 | Q136: 8 | R136: 700 | S136: 1500 | T136: 8 | U136: 34.99 | AO136: 20
A137: 125.131 | B137: Accepted | C137: NA | D137: Peak Gen | E137: PGFFR-8 | F137: DNO connection | G137: DSF: Distributed generation (for export) | H137: 2020-06-01 | I137: 2020-06-30 | J137: 01.06.20 - 30.06.20 (1 months) | K137: As per FFR framework agreement | L137: 1500 | M137: 2300 | N137: 8 | O137: 1500 | P137: 2300 | Q137: 8 | R137: 1500 | S137: 2300 | T137: 8 | U137: 31.99 | AO137: 20
A138: 125.132 | B138: Rejected | C138: 1.2 | D138: Peak Gen | E138: PGFFR-8 | F138: DNO connection | G138: DSF: Distributed generation (for export) | H138: 2020-06-01 | I138: 2020-06-30 | J138: 01.06.20 - 30.06.20 (1 months) | K138: As per FFR framework agreement | L138: 300 | M138: 700 | N138: 4 | O138: 300 | P138: 700 | Q138: 4 | R138: 300 | S138: 700 | T138: 4 | U138: 13.49 | AO138: 9
A139: 125.133 | B139: Rejected | C139: 1.2 | D139: Peak Gen | E139: PGFFR-5 | F139: DNO connection | G139: DSF: Distributed generation (for export) | H139: 2020-05-31 | I139: 2020-06-30 | J139: 31.05.20 - 30.06.20 (1 months) | K139: As per FFR framework agreement | L139: 2300 | M139: 300 | N139: 4 | O139: 2300 | P139: 300 | Q139: 4 | R139: 2300 | S139: 300 | T139: 4 | U139: 12.79 | AO139: 16
A140: 125.134 | B140: Rejected | C140: 1.2 | D140: Peak Gen | E140: PGFFR-5 | F140: DNO connection | G140: DSF: Distributed generation (for export) | H140: 2020-06-01 | I140: 2020-06-30 | J140: 01.06.20 - 30.06.20 (1 months) | K140: As per FFR framework agreement | L140: 300 | M140: 700 | N140: 4 | O140: 300 | P140: 700 | Q140: 4 | R140: 300 | S140: 700 | T140: 4 | U140: 19.99 | AO140: 20
A141: 125.135 | B141: Accepted | C141: NA | D141: Social Energy Limited | E141: SOC1-FFR | F141: DNO connection | G141: DSF: Storage (onsite) | H141: 2020-05-31 | I141: 2020-06-30 | J141: 31.05.20 - 30.06.20 (1 months) | K141: As per FFR framework agreement | L141: 2300 | M141: 700 | N141: 8 | O141: 2300 | P141: 700 | Q141: 8 | R141: 2300 | S141: 700 | T141: 8 | U141: 6.2 | AC141: 0.4 | AD141: 1 | AE141: 1 | AF141: 0.4 | AG141: 1 | AH141: 0.4 | AI141: 1 | AP141: H for only 30mins
A142: 125.136 | B142: Accepted | C142: NA | D142: Social Energy Limited | E142: SOC2-FFR | F142: DNO connection | G142: DSF: Storage (onsite) | H142: 2020-05-31 | I142: 2020-06-30 | J142: 31.05.20 - 30.06.20 (1 months) | K142: As per FFR framework agreement | L142: 2300 | M142: 700 | N142: 8 | O142: 2300 | P142: 700 | Q142: 8 | R142: 2300 | S142: 700 | T142: 8 | U142: 5.97 | AC142: 0.4 | AD142: 1 | AE142: 1 | AF142: 0.4 | AG142: 1 | AH142: 0.4 | AI142: 1 | AP142: H for only 30mins
A143: =A142+0.001 -> 125.137 | B143: Accepted | C143: NA | D143: Social Energy Limited | E143: SOC2-FFR | F143: DNO connection | G143: DSF: Storage (onsite) | H143: 2020-06-01 | I143: 2020-06-30 | J143: 01.06.20 - 30.06.20 (1 months) | K143: As per FFR framework agreement | L143: 700 | M143: 1500 | N143: 8 | O143: 700 | P143: 1500 | Q143: 8 | R143: 700 | S143: 1500 | T143: 8 | U143: 6.85 | AC143: 0.4 | AD143: 1 | AE143: 1 | AF143: 0.4 | AG143: 1 | AH143: 0.4 | AI143: 1 | AP143: H for only 30mins
A144: 125.138 | B144: Accepted | C144: NA | D144: Social Energy Limited | E144: SOC2-FFR | F144: DNO connection | G144: DSF: Storage (onsite) | H144: 2020-06-01 | I144: 2020-06-30 | J144: 01.06.20 - 30.06.20 (1 months) | K144: As per FFR framework agreement | L144: 1900 | M144: 2300 | N144: 4 | O144: 1900 | P144: 2300 | Q144: 4 | R144: 1900 | S144: 2300 | T144: 4 | U144: 7.14 | AC144: 0.4 | AD144: 1 | AE144: 1 | AF144: 0.4 | AG144: 1 | AH144: 0.4 | AI144: 1 | AP144: H for only 30mins
A145: 125.139 | B145: Accepted | C145: NA | D145: Social Energy Limited | E145: SOC3-FFR | F145: DNO connection | G145: DSF: Storage (onsite) | H145: 2020-05-31 | I145: 2020-06-30 | J145: 31.05.20 - 30.06.20 (1 months) | K145: As per FFR framework agreement | L145: 2300 | M145: 700 | N145: 8 | O145: 2300 | P145: 700 | Q145: 8 | R145: 2300 | S145: 700 | T145: 8 | U145: 6.22 | AC145: 0.4 | AD145: 1 | AE145: 1 | AF145: 0.4 | AG145: 1 | AH145: 0.4 | AI145: 1 | AP145: H for only 30mins
A146: 125.14 | B146: Accepted | C146: NA | D146: Social Energy Limited | E146: SOC3-FFR | F146: DNO connection | G146: DSF: Storage (onsite) | H146: 2020-06-01 | I146: 2020-06-30 | J146: 01.06.20 - 30.06.20 (1 months) | K146: As per FFR framework agreement | L146: 700 | M146: 1500 | N146: 8 | O146: 700 | P146: 1500 | Q146: 8 | R146: 700 | S146: 1500 | T146: 8 | U146: 7.08 | AC146: 0.4 | AD146: 1 | AE146: 1 | AF146: 0.4 | AG146: 1 | AH146: 0.4 | AI146: 1 | AP146: H for only 30mins
A147: 125.141 | B147: Accepted | C147: NA | D147: Social Energy Limited | E147: SOC3-FFR | F147: DNO connection | G147: DSF: Storage (onsite) | H147: 2020-06-01 | I147: 2020-06-30 | J147: 01.06.20 - 30.06.20 (1 months) | K147: As per FFR framework agreement | L147: 1900 | M147: 2300 | N147: 4 | O147: 1900 | P147: 2300 | Q147: 4 | R147: 1900 | S147: 2300 | T147: 4 | U147: 7.49 | AC147: 0.4 | AD147: 1 | AE147: 1 | AF147: 0.4 | AG147: 1 | AH147: 0.4 | AI147: 1 | AP147: H for only 30mins
A148: 125.142 | B148: Accepted | C148: NA | D148: Social Energy Limited | E148: SOC4-FFR | F148: DNO connection | G148: DSF: Storage (onsite) | H148: 2020-05-31 | I148: 2020-06-30 | J148: 31.05.20 - 30.06.20 (1 months) | K148: As per FFR framework agreement | L148: 2300 | M148: 700 | N148: 8 | O148: 2300 | P148: 700 | Q148: 8 | R148: 2300 | S148: 700 | T148: 8 | U148: 6.19 | AC148: 0.4 | AD148: 1 | AE148: 1 | AF148: 0.4 | AG148: 1 | AH148: 0.4 | AI148: 1 | AP148: H for only 30mins
A149: 125.143 | B149: Accepted | C149: NA | D149: Social Energy Limited | E149: SOC4-FFR | F149: DNO connection | G149: DSF: Storage (onsite) | H149: 2020-06-01 | I149: 2020-06-30 | J149: 01.06.20 - 30.06.20 (1 months) | K149: As per FFR framework agreement | L149: 700 | M149: 1500 | N149: 8 | O149: 700 | P149: 1500 | Q149: 8 | R149: 700 | S149: 1500 | T149: 8 | U149: 6.97 | AC149: 0.4 | AD149: 1 | AE149: 1 | AF149: 0.4 | AG149: 1 | AH149: 0.4 | AI149: 1 | AP149: H for only 30mins
A150: 125.144 | B150: Accepted | C150: NA | D150: Social Energy Limited | E150: SOC4-FFR | F150: DNO connection | G150: DSF: Storage (onsite) | H150: 2020-06-01 | I150: 2020-06-30 | J150: 01.06.20 - 30.06.20 (1 months) | K150: As per FFR framework agreement | L150: 1900 | M150: 2300 | N150: 4 | O150: 1900 | P150: 2300 | Q150: 4 | R150: 1900 | S150: 2300 | T150: 4 | U150: 7.28 | AC150: 0.4 | AD150: 1 | AE150: 1 | AF150: 0.4 | AG150: 1 | AH150: 0.4 | AI150: 1 | AP150: H for only 30mins
A151: 125.145 | B151: Accepted | C151: NA | D151: Social Energy Limited | E151: SOC5-FFR | F151: DNO connection | G151: DSF: Storage (onsite) | H151: 2020-05-31 | I151: 2020-06-30 | J151: 31.05.20 - 30.06.20 (1 months) | K151: As per FFR framework agreement | L151: 2300 | M151: 700 | N151: 8 | O151: 2300 | P151: 700 | Q151: 8 | R151: 2300 | S151: 700 | T151: 8 | U151: 6.08 | AC151: 0.4 | AD151: 1 | AE151: 1 | AF151: 0.4 | AG151: 1 | AH151: 0.4 | AI151: 1 | AP151: H for only 30mins
A152: 125.146 | B152: Accepted | C152: NA | D152: Social Energy Limited | E152: SOC5-FFR | F152: DNO connection | G152: DSF: Storage (onsite) | H152: 2020-06-01 | I152: 2020-06-30 | J152: 01.06.20 - 30.06.20 (1 months) | K152: As per FFR framework agreement | L152: 700 | M152: 1500 | N152: 8 | O152: 700 | P152: 1500 | Q152: 8 | R152: 700 | S152: 1500 | T152: 8 | U152: 7.07 | AC152: 0.4 | AD152: 1 | AE152: 1 | AF152: 0.4 | AG152: 1 | AH152: 0.4 | AI152: 1 | AP152: H for only 30mins
A153: 125.147 | B153: Accepted | C153: NA | D153: Social Energy Limited | E153: SOC5-FFR | F153: DNO connection | G153: DSF: Storage (onsite) | H153: 2020-06-01 | I153: 2020-06-30 | J153: 01.06.20 - 30.06.20 (1 months) | K153: As per FFR framework agreement | L153: 1900 | M153: 2300 | N153: 4 | O153: 1900 | P153: 2300 | Q153: 4 | R153: 1900 | S153: 2300 | T153: 4 | U153: 7.43 | AC153: 0.4 | AD153: 1 | AE153: 1 | AF153: 0.4 | AG153: 1 | AH153: 0.4 | AI153: 1 | AP153: H for only 30mins
A154: 125.148 | B154: Accepted | C154: NA | D154: Pelham Storage Limited | E154: PLHM-1 | F154: DNO connection | G154: DSF: Storage (for export) | H154: 2020-05-31 | I154: 2020-06-30 | J154: 31.05.20 - 30.06.20 (1 months) | K154: As per FFR framework agreement | O154: 2300 | P154: 700 | Q154: 8 | R154: 2300 | S154: 700 | T154: 8 | U154: 257.88 | X154: - | Y154: - | Z154: - | AA154: - | AB154: - | AC154: 16.8 | AD154: 42 | AE154: 42 | AF154: 16.8 | AG154: 42 | AH154: 16.8 | AI154: 42 | AJ154: - | AK154: - | AQ154: Opted only for weekends
A155: 125.149 | B155: Rejected | C155: 1.2 | D155: Pelham Storage Limited | E155: PLHM-1 | F155: DNO connection | G155: DSF: Storage (for export) | H155: 2020-06-01 | I155: 2020-06-30 | J155: 01.06.20 - 30.06.20 (1 months) | K155: As per FFR framework agreement | O155: 700 | P155: 1500 | Q155: 8 | R155: 700 | S155: 1500 | T155: 8 | U155: 328.32 | X155: - | Y155: - | Z155: - | AA155: - | AB155: - | AC155: 19.2 | AD155: 48 | AE155: 48 | AF155: 19.2 | AG155: 48 | AH155: 19.2 | AI155: 48 | AJ155: - | AK155: - | AQ155: Opted only for weekends
A156: 125.15 | B156: Accepted | C156: NA | D156: Pelham Storage Limited | E156: PLHM-1 | F156: DNO connection | G156: DSF: Storage (for export) | H156: 2020-06-01 | I156: 2020-06-30 | J156: 01.06.20 - 30.06.20 (1 months) | K156: As per FFR framework agreement | O156: 1500 | P156: 2300 | Q156: 8 | R156: 1500 | S156: 2300 | T156: 8 | U156: 381.12 | X156: - | Y156: - | Z156: - | AA156: - | AB156: - | AC156: 19.2 | AD156: 48 | AE156: 48 | AF156: 19.2 | AG156: 48 | AH156: 19.2 | AI156: 48 | AJ156: - | AK156: - | AQ156: Opted only for weekends
A157: 125.151 | B157: Accepted | C157: NA | D157: Creyke Beck Storage Limited | E157: CREY-1 | F157: DNO Connection | G157: DSF: Storage (for export) | H157: 2020-05-31 | I157: 2020-06-30 | J157: 31.05.20 - 30.06.20 (1 months) | K157: As per FFR framework agreement | L157: 2300 | M157: 700 | N157: 8 | O157: 2300 | P157: 700 | Q157: 8 | R157: 2300 | S157: 700 | T157: 8 | U157: 256.2 | X157: - | Y157: - | Z157: - | AA157: - | AB157: - | AC157: 16.8 | AD157: 42 | AE157: 42 | AF157: 16.8 | AG157: 42 | AH157: 16.8 | AI157: 42 | AJ157: - | AK157: -
A158: 125.152 | B158: Accepted | C158: NA | D158: Creyke Beck Storage Limited | E158: CREY-1 | F158: DNO Connection | G158: DSF: Storage (for export) | H158: 2020-06-01 | I158: 2020-06-30 | J158: 01.06.20 - 30.06.20 (1 months) | K158: As per FFR framework agreement | L158: 700 | M158: 1500 | N158: 8 | O158: 700 | P158: 1500 | Q158: 8 | R158: 700 | S158: 1500 | T158: 8 | U158: 326.4 | X158: - | Y158: - | Z158: - | AA158: - | AB158: - | AC158: 19.2 | AD158: 48 | AE158: 48 | AF158: 19.2 | AG158: 48 | AH158: 19.2 | AI158: 48 | AJ158: - | AK158: -
A159: 125.153 | B159: Accepted | C159: NA | D159: Creyke Beck Storage Limited | E159: CREY-1 | F159: DNO Connection | G159: DSF: Storage (for export) | H159: 2020-06-01 | I159: 2020-06-30 | J159: 01.06.20 - 30.06.20 (1 months) | K159: As per FFR framework agreement | L159: 1500 | M159: 2300 | N159: 8 | O159: 1500 | P159: 2300 | Q159: 8 | R159: 1500 | S159: 2300 | T159: 8 | U159: 379.2 | X159: - | Y159: - | Z159: - | AA159: - | AB159: - | AC159: 19.2 | AD159: 48 | AE159: 48 | AF159: 19.2 | AG159: 48 | AH159: 19.2 | AI159: 48 | AJ159: - | AK159: -
A160: 125.154 | B160: Rejected | C160: 1.2 | D160: UK Power Reserve | E160: AFFR1 | F160: DNO connection | G160: DSF: Storage (for export) | H160: 2020-05-31 | I160: 2020-06-30 | J160: 31.05.20 - 30.06.20 (1 months) | K160: As per FFR framework agreement | L160: 2300 | M160: 700 | N160: 8 | O160: 2300 | P160: 700 | Q160: 8 | R160: 2300 | S160: 700 | T160: 8 | U160: 127.4 | AC160: 8 | AD160: 20 | AE160: 20 | AF160: 8 | AG160: 20 | AH160: 8 | AI160: 20
A161: 125.155 | B161: Accepted | C161: NA | D161: UK Power Reserve | E161: AFFR1 | F161: DNO connection | G161: DSF: Storage (for export) | H161: 2020-06-01 | I161: 2020-06-30 | J161: 01.06.20 - 30.06.20 (1 months) | K161: As per FFR framework agreement | L161: 700 | M161: 1500 | N161: 8 | O161: 700 | P161: 1500 | Q161: 8 | R161: 700 | S161: 1500 | T161: 8 | U161: 144.2 | AC161: 8 | AD161: 20 | AE161: 20 | AF161: 8 | AG161: 20 | AH161: 8 | AI161: 20
A162: 125.156 | B162: Accepted | C162: NA | D162: UK Power Reserve | E162: AFFR1 | F162: DNO connection | G162: DSF: Storage (for export) | H162: 2020-06-01 | I162: 2020-06-30 | J162: 01.06.20 - 30.06.20 (1 months) | K162: As per FFR framework agreement | L162: 1500 | M162: 2300 | N162: 8 | O162: 1500 | P162: 2300 | Q162: 8 | R162: 1500 | S162: 2300 | T162: 8 | U162: 171.8 | AC162: 8 | AD162: 20 | AE162: 20 | AF162: 8 | AG162: 20 | AH162: 8 | AI162: 20
A163: 125.157 | B163: Rejected | C163: 1.2 | D163: UK Power Reserve | E163: AFFR2 | F163: DNO connection | G163: DSF: Storage (for export) | H163: 2020-05-31 | I163: 2020-06-30 | J163: 31.05.20 - 30.06.20 (1 months) | K163: As per FFR framework agreement | L163: 2300 | M163: 700 | N163: 8 | O163: 2300 | P163: 700 | Q163: 8 | R163: 2300 | S163: 700 | T163: 8 | U163: 133.4 | AC163: 8 | AD163: 20 | AE163: 20 | AF163: 8 | AG163: 20 | AH163: 8 | AI163: 20
A164: 125.158 | B164: Accepted | C164: NA | D164: UK Power Reserve | E164: AFFR2 | F164: DNO connection | G164: DSF: Storage (for export) | H164: 2020-06-01 | I164: 2020-06-30 | J164: 01.06.20 - 30.06.20 (1 months) | K164: As per FFR framework agreement | L164: 700 | M164: 1500 | N164: 8 | O164: 700 | P164: 1500 | Q164: 8 | R164: 700 | S164: 1500 | T164: 8 | U164: 145.6 | AC164: 8 | AD164: 20 | AE164: 20 | AF164: 8 | AG164: 20 | AH164: 8 | AI164: 20
A165: 125.159 | B165: Accepted | C165: NA | D165: UK Power Reserve | E165: AFFR2 | F165: DNO connection | G165: DSF: Storage (for export) | H165: 2020-06-01 | I165: 2020-06-30 | J165: 01.06.20 - 30.06.20 (1 months) | K165: As per FFR framework agreement | L165: 1500 | M165: 2300 | N165: 8 | O165: 1500 | P165: 2300 | Q165: 8 | R165: 1500 | S165: 2300 | T165: 8 | U165: 174.8 | AC165: 8 | AD165: 20 | AE165: 20 | AF165: 8 | AG165: 20 | AH165: 8 | AI165: 20
A166: 125.16 | B166: Rejected | C166: 1.2 | D166: UK Power Reserve | E166: AFFR3 | F166: DNO connection | G166: DSF: Storage (for export) | H166: 2020-05-31 | I166: 2020-06-30 | J166: 31.05.20 - 30.06.20 (1 months) | K166: As per FFR framework agreement | L166: 2300 | M166: 700 | N166: 8 | O166: 2300 | P166: 700 | Q166: 8 | R166: 2300 | S166: 700 | T166: 8 | U166: 153.4 | AC166: 8 | AD166: 20 | AE166: 20 | AF166: 8 | AG166: 20 | AH166: 8 | AI166: 20
A167: 125.161 | B167: Rejected | C167: 1.2 | D167: UK Power Reserve | E167: AFFR3 | F167: DNO connection | G167: DSF: Storage (for export) | H167: 2020-06-01 | I167: 2020-06-30 | J167: 01.06.20 - 30.06.20 (1 months) | K167: As per FFR framework agreement | L167: 700 | M167: 1500 | N167: 8 | O167: 700 | P167: 1500 | Q167: 8 | R167: 700 | S167: 1500 | T167: 8 | U167: 163 | AC167: 8 | AD167: 20 | AE167: 20 | AF167: 8 | AG167: 20 | AH167: 8 | AI167: 20
A168: 125.162 | B168: Rejected | C168: 1.2 | D168: UK Power Reserve | E168: AFFR3 | F168: DNO connection | G168: DSF: Storage (for export) | H168: 2020-06-01 | I168: 2020-06-30 | J168: 01.06.20 - 30.06.20 (1 months) | K168: As per FFR framework agreement | L168: 1500 | M168: 2300 | N168: 8 | O168: 1500 | P168: 2300 | Q168: 8 | R168: 1500 | S168: 2300 | T168: 8 | U168: 178.8 | AC168: 8 | AD168: 20 | AE168: 20 | AF168: 8 | AG168: 20 | AH168: 8 | AI168: 20
A169: 125.163 | B169: Accepted | C169: NA | D169: Upside Energy | E169: UPEN-2 | F169: DNO connection | G169: DSF: Storage (onsite) | H169: 2020-05-31 | I169: 2020-06-30 | J169: 31.05.20 - 30.06.20 (1 months) | K169: As per FFR framework agreement | L169: 2300 | M169: 700 | N169: 8 | O169: 2300 | P169: 700 | Q169: 8 | R169: 2300 | S169: 700 | T169: 8 | U169: 5.5 | AC169: 0.4 | AD169: 1 | AE169: 1 | AF169: 0.4 | AG169: 1 | AH169: 0.4 | AI169: 1
A170: =A169+0.001 -> 125.164 | B170: Accepted | C170: NA | D170: Upside Energy | E170: UPEN-1 | F170: DNO connection | G170: DSF: Storage (for export) | H170: 2020-05-31 | I170: 2020-06-30 | J170: 31.05.20 - 30.06.20 (1 months) | K170: As per FFR framework agreement | L170: 2300 | M170: 700 | N170: 8 | O170: 2300 | P170: 700 | Q170: 8 | R170: 2300 | S170: 700 | T170: 8 | U170: 2.5 | AC170: 0.4 | AD170: 1 | AE170: 1 | AF170: 0.4 | AG170: 1 | AH170: 0 | AI170: 0 | AM170: Can not be accepted with tender 125.165 | AQ170: Mutual exclusive tenders
A171: =A170+0.001 -> 125.165 | B171: Rejected | C171: 1.1 | D171: Upside Energy | E171: UPEN-1 | F171: DNO connection | G171: DSF: Storage (for export) | H171: 2020-05-31 | I171: 2020-06-30 | J171: 31.05.20 - 30.06.20 (1 months) | K171: As per FFR framework agreement | L171: 2300 | M171: 700 | N171: 8 | O171: 2300 | P171: 700 | Q171: 8 | R171: 2300 | S171: 700 | T171: 8 | U171: 1.8 | AM171: Can not be accepted with tender 125.164 | AN171: 1 | AO171: 1 | AQ171: Mutual exclusive tenders
A172: 125.166 | B172: Rejected | C172: 1.2 | D172: EDF Energy Customers Limited | E172: AG-AEDF01 | F172: DNO connection | G172: DSF: Storage (for export) | H172: 2020-05-31 | I172: 2020-06-30 | J172: 31.05.20 - 30.06.20 (1 months) | K172: As per FFR framework agreement | L172: 2300 | M172: 700 | N172: 8 | O172: 2300 | P172: 700 | Q172: 8 | R172: 2300 | S172: 700 | T172: 8 | U172: 38.94 | AC172: 2.4 | AD172: 6 | AE172: 6 | AF172: 2.4 | AG172: 6 | AH172: 2.4 | AI172: 6
A173: 125.167 | B173: Rejected | C173: 1.2 | D173: EDF Energy Customers Limited | E173: AG-AEDF01 | F173: DNO connection | G173: DSF: Storage (for export) | H173: 2020-06-01 | I173: 2020-06-30 | J173: 01.06.20 - 30.06.20 (1 months) | K173: As per FFR framework agreement | L173: 700 | M173: 1500 | N173: 8 | O173: 700 | P173: 1500 | Q173: 8 | R173: 700 | S173: 1500 | T173: 8 | U173: 45 | AC173: 2.4 | AD173: 6 | AE173: 6 | AF173: 2.4 | AG173: 6 | AH173: 2.4 | AI173: 6
A174: 125.168 | B174: Accepted | C174: NA | D174: EDF Energy Customers Limited | E174: AG-AEDF01 | F174: DNO connection | G174: DSF: Storage (for export) | H174: 2020-06-01 | I174: 2020-06-30 | J174: 01.06.20 - 30.06.20 (1 months) | K174: As per FFR framework agreement | L174: 1500 | M174: 2300 | N174: 8 | O174: 1500 | P174: 2300 | Q174: 8 | R174: 1500 | S174: 2300 | T174: 8 | U174: 53.94 | AC174: 2.4 | AD174: 6 | AE174: 6 | AF174: 2.4 | AG174: 6 | AH174: 2.4 | AI174: 6
A175: 125.169 | B175: Accepted | C175: NA | D175: EDF Energy Customers Limited | E175: AG -GEDF01 | F175: DNO connection | G175: DSF: Storage (for export) | H175: 2020-05-31 | I175: 2020-06-30 | J175: 31.05.20 - 30.06.20 (1 months) | K175: As per FFR framework agreement | L175: 2300 | M175: 700 | N175: 8 | O175: 2300 | P175: 700 | Q175: 8 | R175: 2300 | S175: 700 | T175: 8 | U175: 124.8 | AC175: 8 | AD175: 20 | AE175: 20 | AF175: 8 | AG175: 20 | AH175: 8 | AI175: 20
A176: 125.17 | B176: Accepted | C176: NA | D176: EDF Energy Customers Limited | E176: AG -GEDF01 | F176: DNO connection | G176: DSF: Storage (for export) | H176: 2020-06-01 | I176: 2020-06-30 | J176: 01.06.20 - 30.06.20 (1 months) | K176: As per FFR framework agreement | L176: 700 | M176: 1500 | N176: 8 | O176: 700 | P176: 1500 | Q176: 8 | R176: 700 | S176: 1500 | T176: 8 | U176: 140.2 | AC176: 8 | AD176: 20 | AE176: 20 | AF176: 8 | AG176: 20 | AH176: 8 | AI176: 20
A177: 125.171 | B177: Accepted | C177: NA | D177: EDF Energy Customers Limited | E177: AG -GEDF01 | F177: DNO connection | G177: DSF: Storage (for export) | H177: 2020-06-01 | I177: 2020-06-30 | J177: 01.06.20 - 30.06.20 (1 months) | K177: As per FFR framework agreement | L177: 1500 | M177: 2300 | N177: 8 | O177: 1500 | P177: 2300 | Q177: 8 | R177: 1500 | S177: 2300 | T177: 8 | U177: 149.8 | AC177: 8 | AD177: 20 | AE177: 20 | AF177: 8 | AG177: 20 | AH177: 8 | AI177: 20
A178: 125.172 | B178: Accepted | C178: NA | D178: EDF Energy Customers Limited | E178: AG -GEDF02 | F178: DNO connection | G178: DSF: Storage (for export) | H178: 2020-05-31 | I178: 2020-06-30 | J178: 31.05.20 - 30.06.20 (1 months) | K178: As per FFR framework agreement | L178: 2300 | M178: 700 | N178: 8 | O178: 2300 | P178: 700 | Q178: 8 | R178: 2300 | S178: 700 | T178: 8 | U178: 125 | AC178: 8 | AD178: 20 | AE178: 20 | AF178: 8 | AG178: 20 | AH178: 8 | AI178: 20
A179: 125.173 | B179: Accepted | C179: NA | D179: EDF Energy Customers Limited | E179: AG -GEDF02 | F179: DNO connection | G179: DSF: Storage (for export) | H179: 2020-06-01 | I179: 2020-06-30 | J179: 01.06.20 - 30.06.20 (1 months) | K179: As per FFR framework agreement | L179: 700 | M179: 1500 | N179: 8 | O179: 700 | P179: 1500 | Q179: 8 | R179: 700 | S179: 1500 | T179: 8 | U179: 140 | AC179: 8 | AD179: 20 | AE179: 20 | AF179: 8 | AG179: 20 | AH179: 8 | AI179: 20
A180: 125.174 | B180: Accepted | C180: NA | D180: EDF Energy Customers Limited | E180: AG -GEDF02 | F180: DNO connection | G180: DSF: Storage (for export) | H180: 2020-06-01 | I180: 2020-06-30 | J180: 01.06.20 - 30.06.20 (1 months) | K180: As per FFR framework agreement | L180: 1500 | M180: 2300 | N180: 8 | O180: 1500 | P180: 2300 | Q180: 8 | R180: 1500 | S180: 2300 | T180: 8 | U180: 149.6 | AC180: 8 | AD180: 20 | AE180: 20 | AF180: 8 | AG180: 20 | AH180: 8 | AI180: 20
A181: 125.175 | B181: Rejected | C181: 1.2 | D181: EDF Energy Customers Limited | E181: EDFE-2 | F181: DNO connection | G181: DSF: Storage (for export) | H181: 2020-05-31 | I181: 2020-06-30 | J181: 31.05.20 - 30.06.20 (1 months) | K181: As per FFR framework agreement | L181: 2300 | M181: 700 | N181: 8 | O181: 2300 | P181: 700 | Q181: 8 | R181: 2300 | S181: 700 | T181: 8 | U181: 51.92 | AC181: 3.2 | AD181: 8 | AE181: 8 | AF181: 3.2 | AG181: 8 | AH181: 3.2 | AI181: 8
A182: 125.176 | B182: Rejected | C182: 1.2 | D182: EDF Energy Customers Limited | E182: EDFE-2 | F182: DNO connection | G182: DSF: Storage (for export) | H182: 2020-06-01 | I182: 2020-06-30 | J182: 01.06.20 - 30.06.20 (1 months) | K182: As per FFR framework agreement | L182: 700 | M182: 2300 | N182: 16 | O182: 700 | P182: 2300 | Q182: 16 | R182: 700 | S182: 2300 | T182: 16 | U182: 65.52 | AC182: 3.2 | AD182: 8 | AE182: 8 | AF182: 3.2 | AG182: 8 | AH182: 3.2 | AI182: 8
A183: 125.177 | B183: Rejected | C183: 1.2 | D183: EDF Energy Customers Limited | E183: EDFE-6 | F183: DNO connection | G183: DSF: Storage (for export) | H183: 2020-05-31 | I183: 2020-06-30 | J183: 31.05.20 - 30.06.20 (1 months) | K183: As per FFR framework agreement | L183: 2300 | M183: 700 | N183: 8 | O183: 2300 | P183: 700 | Q183: 8 | R183: 2300 | S183: 700 | T183: 8 | U183: 46.55 | AC183: 2.8 | AD183: 7 | AE183: 7 | AF183: 2.8 | AG183: 7 | AH183: 2.8 | AI183: 7
A184: 125.178 | B184: Rejected | C184: 1.1 | D184: EDF Energy Customers Limited | E184: EDFE-6 | F184: DNO connection | G184: DSF: Storage (for export) | H184: 2020-06-01 | I184: 2020-06-30 | J184: 01.06.20 - 30.06.20 (1 months) | K184: As per FFR framework agreement | L184: 700 | M184: 2300 | N184: 16 | O184: 700 | P184: 2300 | Q184: 16 | R184: 700 | S184: 2300 | T184: 16 | U184: 58.03 | AC184: 2.8 | AD184: 7 | AE184: 7 | AF184: 2.8 | AG184: 7 | AH184: 2.8 | AI184: 7
A185: 125.179 | B185: Accepted | C185: NA | D185: First Renewable Alpha Limited | E185: TREGN-1 | F185: DNO connection | G185: Diesel | H185: 2020-06-01 | I185: 2020-06-30 | J185: 01.06.20 - 30.06.20 (1 months) | K185: As per FFR framework agreement | L185: 700 | M185: 1500 | N185: 8 | O185: 700 | P185: 1500 | Q185: 8 | R185: 700 | S185: 1500 | T185: 8 | U185: 36 | AO185: 20
A186: 125.18 | B186: Accepted | C186: NA | D186: First Renewable Alpha Limited | E186: TREGN-1 | F186: DNO connection | G186: Diesel | H186: 2020-06-01 | I186: 2020-06-30 | J186: 01.06.20 - 30.06.20 (1 months) | K186: As per FFR framework agreement | L186: 1500 | M186: 2300 | N186: 8 | O186: 1500 | P186: 2300 | Q186: 8 | R186: 1500 | S186: 2300 | T186: 8 | U186: 34 | AO186: 20
A188: Rejection Codes | B188: Code | D188: Reason
B189: 1 | C189: Beneficial | E189: 1.1 | F189: Req. satisifed by more beneficial bids
E190: 1.2 | F190: No outstanding req.
E191: 1.3 | F191: Desired procurement volume already met
E192: 1.4 | F192: Formed part of AON. Not collectively beneficial
B193: 2 | C193: Price not beneificial across tendered period
B194: 3 | C194: Does not meet tender prerequisites
B195: 4 | C195: Multiple tenders received for the same unit
B196: 5 | C196: Beyond desired procument volume
